Workbook

Sheet Data
A1: EXCHANGE%3DNSE
A2: MARKET_OPEN_MINUTE=555
A3: MARKET_CLOSE_MINUTE=930
A4: INTERVAL=600
A5: COLUMNS=DATE | B5: CLOSE | C5: HIGH | D5: LOW | E5: OPEN | F5: VOLUME
A6: DATA=
A7: TIMEZONE_OFFSET=330
A8: a1504065000 | B8: 932.35 | C8: 938.7 | D8: 931.2 | E8: 935.95 | F8: 736593 | G8: 2017-08-30T09:20:00
A9: 1 | B9: 933.5 | C9: 933.9 | D9: 930.4 | E9: 932.35 | F9: 590340 | G9: =(A9*600+1504084800)/86400+25569 -> 2017-08-30T09:30:00
A10: 2 | B10: 932.2 | C10: 933.5 | D10: 932 | E10: 933.5 | F10: 228334 | G10: =(A10*600+1504084800)/86400+25569 -> 2017-08-30T09:40:00
A11: 3 | B11: 931.1 | C11: 932.3 | D11: 931 | E11: 932.25 | F11: 267426 | G11: =(A11*600+1504084800)/86400+25569 -> 2017-08-30T09:50:00
A12: 4 | B12: 931.4 | C12: 931.5 | D12: 929.05 | E12: 931.15 | F12: 283609 | G12: =(A12*600+1504084800)/86400+25569 -> 2017-08-30T10:00:00
A13: 5 | B13: 931.9 | C13: 931.9 | D13: 930.5 | E13: 931.35 | F13: 196665 | G13: =(A13*600+1504084800)/86400+25569 -> 2017-08-30T10:10:00
A14: 6 | B14: 933 | C14: 933.1 | D14: 931.85 | E14: 931.9 | F14: 191328 | G14: =(A14*600+1504084800)/86400+25569 -> 2017-08-30T10:20:00
A15: 7 | B15: 932.5 | C15: 933 | D15: 932 | E15: 933 | F15: 79516 | G15: =(A15*600+1504084800)/86400+25569 -> 2017-08-30T10:30:00
A16: 8 | B16: 932.15 | C16: 932.9 | D16: 931.5 | E16: 932.45 | F16: 224956 | G16: =(A16*600+1504084800)/86400+25569 -> 2017-08-30T10:40:00
A17: 9 | B17: 932 | C17: 932.7 | D17: 931.4 | E17: 932.15 | F17: 171482 | G17: =(A17*600+1504084800)/86400+25569 -> 2017-08-30T10:50:00
A18: 10 | B18: 929.55 | C18: 932.3 | D18: 928.1 | E18: 932 | F18: 193152 | G18: =(A18*600+1504084800)/86400+25569 -> 2017-08-30T11:00:00
A19: 11 | B19: 929.65 | C19: 930.7 | D19: 929.35 | E19: 929.6 | F19: 133398 | G19: =(A19*600+1504084800)/86400+25569 -> 2017-08-30T11:10:00
A20: 12 | B20: 927.8 | C20: 930.15 | D20: 926.2 | E20: 929.7 | F20: 370000 | G20: =(A20*600+1504084800)/86400+25569 -> 2017-08-30T11:20:00
A21: 13 | B21: 927.95 | C21: 928 | D21: 926.7 | E21: 927.5 | F21: 132500 | G21: =(A21*600+1504084800)/86400+25569 -> 2017-08-30T11:30:00
A22: 14 | B22: 929.05 | C22: 929.75 | D22: 927.95 | E22: 927.95 | F22: 109845 | G22: =(A22*600+1504084800)/86400+25569 -> 2017-08-30T11:40:00
A23: 15 | B23: 930.1 | C23: 930.5 | D23: 929.05 | E23: 929.35 | F23: 89253 | G23: =(A23*600+1504084800)/86400+25569 -> 2017-08-30T11:50:00
A24: 16 | B24: 931 | C24: 931.65 | D24: 930.05 | E24: 930.1 | F24: 125050 | G24: =(A24*600+1504084800)/86400+25569 -> 2017-08-30T12:00:00
A25: 17 | B25: 930.9 | C25: 931.1 | D25: 930.55 | E25: 930.9 | F25: 115179 | G25: =(A25*600+1504084800)/86400+25569 -> 2017-08-30T12:10:00
A26: 18 | B26: 930.95 | C26: 931.05 | D26: 930.55 | E26: 930.95 | F26: 97825 | G26: =(A26*600+1504084800)/86400+25569 -> 2017-08-30T12:20:00
A27: 19 | B27: 931.15 | C27: 931.75 | D27: 930.4 | E27: 930.95 | F27: 191477 | G27: =(A27*600+1504084800)/86400+25569 -> 2017-08-30T12:30:00
A28: 20 | B28: 933.7 | C28: 934 | D28: 930.8 | E28: 931 | F28: 556671 | G28: =(A28*600+1504084800)/86400+25569 -> 2017-08-30T12:40:00
A29: 21 | B29: 931.4 | C29: 933.65 | D29: 930.95 | E29: 933.3 | F29: 154818 | G29: =(A29*600+1504084800)/86400+25569 -> 2017-08-30T12:50:00
A30: 22 | B30: 931.2 | C30: 931.95 | D30: 930.1 | E30: 931.4 | F30: 128970 | G30: =(A30*600+1504084800)/86400+25569 -> 2017-08-30T13:00:00
A31: 23 | B31: 931.65 | C31: 932 | D31: 931.05 | E31: 931.2 | F31: 105693 | G31: =(A31*600+1504084800)/86400+25569 -> 2017-08-30T13:10:00
A32: 24 | B32: 931.75 | C32: 932.2 | D32: 930.8 | E32: 931.7 | F32: 120814 | G32: =(A32*600+1504084800)/86400+25569 -> 2017-08-30T13:20:00
A33: 25 | B33: 930.7 | C33: 932 | D33: 930.3 | E33: 931.75 | F33: 111469 | G33: =(A33*600+1504084800)/86400+25569 -> 2017-08-30T13:30:00
A34: 26 | B34: 930.05 | C34: 930.75 | D34: 929.5 | E34: 930.3 | F34: 155289 | G34: =(A34*600+1504084800)/86400+25569 -> 2017-08-30T13:40:00
A35: 27 | B35: 930.55 | C35: 931.35 | D35: 930 | E35: 930.05 | F35: 80844 | G35: =(A35*600+1504084800)/86400+25569 -> 2017-08-30T13:50:00
A36: 28 | B36: 929.8 | C36: 930.75 | D36: 929.5 | E36: 930.55 | F36: 90854 | G36: =(A36*600+1504084800)/86400+25569 -> 2017-08-30T14:00:00
A37: 29 | B37: 929.95 | C37: 930.15 | D37: 929.1 | E37: 929.85 | F37: 126870 | G37: =(A37*600+1504084800)/86400+25569 -> 2017-08-30T14:10:00
A38: 30 | B38: 930.1 | C38: 930.9 | D38: 929.6 | E38: 929.95 | F38: 110267 | G38: =(A38*600+1504084800)/86400+25569 -> 2017-08-30T14:20:00
A39: 31 | B39: 928.75 | C39: 930.1 | D39: 928 | E39: 930.05 | F39: 175877 | G39: =(A39*600+1504084800)/86400+25569 -> 2017-08-30T14:30:00
A40: 32 | B40: 926.4 | C40: 929.3 | D40: 925.35 | E40: 928.75 | F40: 265063 | G40: =(A40*600+1504084800)/86400+25569 -> 2017-08-30T14:40:00
A41: 33 | B41: 927.65 | C41: 927.8 | D41: 925.95 | E41: 926.55 | F41: 157971 | G41: =(A41*600+1504084800)/86400+25569 -> 2017-08-30T14:50:00
A42: 34 | B42: 927.5 | C42: 928.25 | D42: 926.7 | E42: 927.65 | F42: 99782 | G42: =(A42*600+1504084800)/86400+25569 -> 2017-08-30T15:00:00
A43: 35 | B43: 926.75 | C43: 929.45 | D43: 926.05 | E43: 927.5 | F43: 301497 | G43: =(A43*600+1504084800)/86400+25569 -> 2017-08-30T15:10:00
A44: 36 | B44: 926.45 | C44: 926.85 | D44: 924.15 | E44: 926.6 | F44: 486907 | G44: =(A44*600+1504084800)/86400+25569 -> 2017-08-30T15:20:00
A45: 37 | B45: 926.7 | C45: 928 | D45: 925.5 | E45: 926.3 | F45: 289205 | G45: =(A45*600+1504084800)/86400+25569 -> 2017-08-30T15:30:00
A46: 144 | B46: 924.45 | C46: 928.9 | D46: 921.4 | E46: 928.7 | F46: 182317 | G46: =(A46*600+1504084800)/86400+25569 -> 2017-08-31T09:20:00
A47: 145 | B47: 921 | C47: 924.8 | D47: 921 | E47: 924.2 | F47: 200157 | G47: =(A47*600+1504084800)/86400+25569 -> 2017-08-31T09:30:00
A48: 146 | B48: 919 | C48: 921.6 | D48: 918.2 | E48: 921.25 | F48: 280092 | G48: =(A48*600+1504084800)/86400+25569 -> 2017-08-31T09:40:00
A49: 147 | B49: 917.8 | C49: 919.65 | D49: 914.65 | E49: 919 | F49: 377464 | G49: =(A49*600+1504084800)/86400+25569 -> 2017-08-31T09:50:00
A50: 148 | B50: 919.4 | C50: 919.6 | D50: 916.8 | E50: 917.55 | F50: 129828 | G50: =(A50*600+1504084800)/86400+25569 -> 2017-08-31T10:00:00
A51: 149 | B51: 915 | C51: 919.5 | D51: 915 | E51: 919.4 | F51: 344817 | G51: =(A51*600+1504084800)/86400+25569 -> 2017-08-31T10:10:00
A52: 150 | B52: 917.1 | C52: 918 | D52: 915.1 | E52: 915.2 | F52: 164616 | G52: =(A52*600+1504084800)/86400+25569 -> 2017-08-31T10:20:00
A53: 151 | B53: 917.55 | C53: 917.9 | D53: 916.5 | E53: 917.2 | F53: 66842 | G53: =(A53*600+1504084800)/86400+25569 -> 2017-08-31T10:30:00
A54: 152 | B54: 916.7 | C54: 917.55 | D54: 916.15 | E54: 917.4 | F54: 77939 | G54: =(A54*600+1504084800)/86400+25569 -> 2017-08-31T10:40:00
A55: 153 | B55: 916.8 | C55: 917.7 | D55: 916.35 | E55: 916.6 | F55: 80890 | G55: =(A55*600+1504084800)/86400+25569 -> 2017-08-31T10:50:00
A56: 154 | B56: 916.6 | C56: 917.3 | D56: 915.75 | E56: 917 | F56: 84741 | G56: =(A56*600+1504084800)/86400+25569 -> 2017-08-31T11:00:00
A57: 155 | B57: 917.25 | C57: 917.5 | D57: 916.55 | E57: 916.6 | F57: 78839 | G57: =(A57*600+1504084800)/86400+25569 -> 2017-08-31T11:10:00
A58: 156 | B58: 917.05 | C58: 917.4 | D58: 916.5 | E58: 917.25 | F58: 67276 | G58: =(A58*600+1504084800)/86400+25569 -> 2017-08-31T11:20:00
A59: 157 | B59: 917.1 | C59: 917.45 | D59: 916.8 | E59: 917.15 | F59: 96596 | G59: =(A59*600+1504084800)/86400+25569 -> 2017-08-31T11:30:00
A60: 158 | B60: 916.25 | C60: 917.5 | D60: 916.05 | E60: 917.4 | F60: 62813 | G60: =(A60*600+1504084800)/86400+25569 -> 2017-08-31T11:40:00
A61: 159 | B61: 916.3 | C61: 917.3 | D61: 916.05 | E61: 916.25 | F61: 98951 | G61: =(A61*600+1504084800)/86400+25569 -> 2017-08-31T11:50:00
A62: 160 | B62: 916.55 | C62: 917 | D62: 915.45 | E62: 916.4 | F62: 110392 | G62: =(A62*600+1504084800)/86400+25569 -> 2017-08-31T12:00:00
A63: 161 | B63: 918.85 | C63: 918.95 | D63: 916.2 | E63: 916.5 | F63: 119101 | G63: =(A63*600+1504084800)/86400+25569 -> 2017-08-31T12:10:00
A64: 162 | B64: 918.95 | C64: 919.75 | D64: 918.1 | E64: 918.7 | F64: 126977 | G64: =(A64*600+1504084800)/86400+25569 -> 2017-08-31T12:20:00
A65: 163 | B65: 918.3 | C65: 919 | D65: 918 | E65: 918.7 | F65: 79003 | G65: =(A65*600+1504084800)/86400+25569 -> 2017-08-31T12:30:00
A66: 164 | B66: 918.65 | C66: 920 | D66: 918.05 | E66: 918.05 | F66: 114542 | G66: =(A66*600+1504084800)/86400+25569 -> 2017-08-31T12:40:00
A67: 165 | B67: 919.45 | C67: 919.6 | D67: 918.55 | E67: 918.65 | F67: 62907 | G67: =(A67*600+1504084800)/86400+25569 -> 2017-08-31T12:50:00
A68: 166 | B68: 919.2 | C68: 919.5 | D68: 919 | E68: 919.45 | F68: 64218 | G68: =(A68*600+1504084800)/86400+25569 -> 2017-08-31T13:00:00
A69: 167 | B69: 918.05 | C69: 919.2 | D69: 917.55 | E69: 919.2 | F69: 104487 | G69: =(A69*600+1504084800)/86400+25569 -> 2017-08-31T13:10:00
A70: 168 | B70: 915.7 | C70: 918.6 | D70: 915 | E70: 918.4 | F70: 147837 | G70: =(A70*600+1504084800)/86400+25569 -> 2017-08-31T13:20:00
A71: 169 | B71: 916.2 | C71: 917.6 | D71: 915.8 | E71: 915.8 | F71: 105097 | G71: =(A71*600+1504084800)/86400+25569 -> 2017-08-31T13:30:00
A72: 170 | B72: 916.3 | C72: 917.1 | D72: 915.55 | E72: 916.2 | F72: 92717 | G72: =(A72*600+1504084800)/86400+25569 -> 2017-08-31T13:40:00
A73: 171 | B73: 918.35 | C73: 918.45 | D73: 916.15 | E73: 916.35 | F73: 94256 | G73: =(A73*600+1504084800)/86400+25569 -> 2017-08-31T13:50:00
A74: 172 | B74: 918.05 | C74: 919.2 | D74: 917.5 | E74: 918.4 | F74: 90593 | G74: =(A74*600+1504084800)/86400+25569 -> 2017-08-31T14:00:00
A75: 173 | B75: 918.15 | C75: 918.6 | D75: 917.2 | E75: 918.1 | F75: 72864 | G75: =(A75*600+1504084800)/86400+25569 -> 2017-08-31T14:10:00
A76: 174 | B76: 919.45 | C76: 919.45 | D76: 918 | E76: 918.1 | F76: 67750 | G76: =(A76*600+1504084800)/86400+25569 -> 2017-08-31T14:20:00
A77: 175 | B77: 918.05 | C77: 919.45 | D77: 917.35 | E77: 919.45 | F77: 94380 | G77: =(A77*600+1504084800)/86400+25569 -> 2017-08-31T14:30:00
A78: 176 | B78: 918.25 | C78: 919.35 | D78: 918 | E78: 918.05 | F78: 95365 | G78: =(A78*600+1504084800)/86400+25569 -> 2017-08-31T14:40:00
A79: 177 | B79: 919.2 | C79: 919.7 | D79: 918.5 | E79: 918.5 | F79: 92050 | G79: =(A79*600+1504084800)/86400+25569 -> 2017-08-31T14:50:00
A80: 178 | B80: 917.75 | C80: 919.65 | D80: 917.2 | E80: 919.1 | F80: 107071 | G80: =(A80*600+1504084800)/86400+25569 -> 2017-08-31T15:00:00
A81: 179 | B81: 914.85 | C81: 918.95 | D81: 914.7 | E81: 917.6 | F81: 1131662 | G81: =(A81*600+1504084800)/86400+25569 -> 2017-08-31T15:10:00
A82: 180 | B82: 913.1 | C82: 915 | D82: 912.9 | E82: 914.9 | F82: 1105168 | G82: =(A82*600+1504084800)/86400+25569 -> 2017-08-31T15:20:00
A83: 181 | B83: 915 | C83: 915 | D83: 913.1 | E83: 913.1 | F83: 1017668 | G83: =(A83*600+1504084800)/86400+25569 -> 2017-08-31T15:30:00
A84: 288 | B84: 913.2 | C84: 915.4 | D84: 910 | E84: 915.4 | F84: 256729 | G84: =(A84*600+1504084800)/86400+25569 -> 2017-09-01T09:20:00
A85: 289 | B85: 919.95 | C85: 921.45 | D85: 912.6 | E85: 913.2 | F85: 403150 | G85: =(A85*600+1504084800)/86400+25569 -> 2017-09-01T09:30:00
A86: 290 | B86: 920.7 | C86: 920.7 | D86: 918 | E86: 919.9 | F86: 217308 | G86: =(A86*600+1504084800)/86400+25569 -> 2017-09-01T09:40:00
A87: 291 | B87: 924.7 | C87: 925.8 | D87: 920.35 | E87: 920.7 | F87: 382411 | G87: =(A87*600+1504084800)/86400+25569 -> 2017-09-01T09:50:00
A88: 292 | B88: 924.4 | C88: 924.9 | D88: 924 | E88: 924.75 | F88: 110798 | G88: =(A88*600+1504084800)/86400+25569 -> 2017-09-01T10:00:00
A89: 293 | B89: 922.75 | C89: 924.75 | D89: 921.6 | E89: 924.3 | F89: 160929 | G89: =(A89*600+1504084800)/86400+25569 -> 2017-09-01T10:10:00
A90: 294 | B90: 923 | C90: 923.55 | D90: 922.35 | E90: 922.7 | F90: 101561 | G90: =(A90*600+1504084800)/86400+25569 -> 2017-09-01T10:20:00
A91: 295 | B91: 920.9 | C91: 923 | D91: 920.8 | E91: 922.5 | F91: 128135 | G91: =(A91*600+1504084800)/86400+25569 -> 2017-09-01T10:30:00
A92: 296 | B92: 921.45 | C92: 922.2 | D92: 920.2 | E92: 921 | F92: 85551 | G92: =(A92*600+1504084800)/86400+25569 -> 2017-09-01T10:40:00
A93: 297 | B93: 921.2 | C93: 921.35 | D93: 921 | E93: 921.1 | F93: 20220 | G93: =(A93*600+1504084800)/86400+25569 -> 2017-09-01T10:50:00
A94: 298 | B94: 920.6 | C94: 921.25 | D94: 920.3 | E94: 921.2 | F94: 70214 | G94: =(A94*600+1504084800)/86400+25569 -> 2017-09-01T11:00:00
A95: 299 | B95: 920.95 | C95: 921.75 | D95: 920.5 | E95: 920.5 | F95: 63112 | G95: =(A95*600+1504084800)/86400+25569 -> 2017-09-01T11:10:00
A96: 300 | B96: 919.55 | C96: 921 | D96: 918.1 | E96: 920.95 | F96: 127358 | G96: =(A96*600+1504084800)/86400+25569 -> 2017-09-01T11:20:00
A97: 301 | B97: 919.65 | C97: 919.75 | D97: 919.1 | E97: 919.2 | F97: 39374 | G97: =(A97*600+1504084800)/86400+25569 -> 2017-09-01T11:30:00
A98: 302 | B98: 919.2 | C98: 919.8 | D98: 919.1 | E98: 919.6 | F98: 41971 | G98: =(A98*600+1504084800)/86400+25569 -> 2017-09-01T11:40:00
A99: 303 | B99: 918.5 | C99: 919.55 | D99: 918.25 | E99: 919.25 | F99: 70424 | G99: =(A99*600+1504084800)/86400+25569 -> 2017-09-01T11:50:00
A100: 304 | B100: 917.6 | C100: 918.45 | D100: 916.65 | E100: 918.45 | F100: 91125 | G100: =(A100*600+1504084800)/86400+25569 -> 2017-09-01T12:00:00
A101: 305 | B101: 918.9 | C101: 919 | D101: 917.5 | E101: 917.65 | F101: 51922 | G101: =(A101*600+1504084800)/86400+25569 -> 2017-09-01T12:10:00
A102: 306 | B102: 918.5 | C102: 919 | D102: 917.85 | E102: 918.95 | F102: 58667 | G102: =(A102*600+1504084800)/86400+25569 -> 2017-09-01T12:20:00
A103: 307 | B103: 918.7 | C103: 919 | D103: 917.85 | E103: 918.35 | F103: 66893 | G103: =(A103*600+1504084800)/86400+25569 -> 2017-09-01T12:30:00
A104: 308 | B104: 918.4 | C104: 919.4 | D104: 918 | E104: 918.65 | F104: 66418 | G104: =(A104*600+1504084800)/86400+25569 -> 2017-09-01T12:40:00
A105: 309 | B105: 918.7 | C105: 918.9 | D105: 918.05 | E105: 918.1 | F105: 50332 | G105: =(A105*600+1504084800)/86400+25569 -> 2017-09-01T12:50:00
A106: 310 | B106: 918.25 | C106: 918.9 | D106: 918.05 | E106: 918.65 | F106: 44955 | G106: =(A106*600+1504084800)/86400+25569 -> 2017-09-01T13:00:00
A107: 311 | B107: 918.3 | C107: 918.7 | D107: 918.05 | E107: 918.25 | F107: 33120 | G107: =(A107*600+1504084800)/86400+25569 -> 2017-09-01T13:10:00
A108: 312 | B108: 917.9 | C108: 918.6 | D108: 917.85 | E108: 918.25 | F108: 52167 | G108: =(A108*600+1504084800)/86400+25569 -> 2017-09-01T13:20:00
A109: 313 | B109: 918.15 | C109: 918.15 | D109: 917.5 | E109: 917.8 | F109: 45446 | G109: =(A109*600+1504084800)/86400+25569 -> 2017-09-01T13:30:00
A110: 314 | B110: 918.25 | C110: 918.6 | D110: 917.8 | E110: 918.15 | F110: 30926 | G110: =(A110*600+1504084800)/86400+25569 -> 2017-09-01T13:40:00
A111: 315 | B111: 919.2 | C111: 919.5 | D111: 918.1 | E111: 918.25 | F111: 50721 | G111: =(A111*600+1504084800)/86400+25569 -> 2017-09-01T13:50:00
A112: 316 | B112: 918.25 | C112: 919.25 | D112: 918.25 | E112: 919 | F112: 45811 | G112: =(A112*600+1504084800)/86400+25569 -> 2017-09-01T14:00:00
A113: 317 | B113: 918.3 | C113: 919.25 | D113: 917.55 | E113: 918.4 | F113: 47760 | G113: =(A113*600+1504084800)/86400+25569 -> 2017-09-01T14:10:00
A114: 318 | B114: 917 | C114: 918.3 | D114: 916.3 | E114: 918.2 | F114: 64890 | G114: =(A114*600+1504084800)/86400+25569 -> 2017-09-01T14:20:00
A115: 319 | B115: 916.15 | C115: 917.35 | D115: 915.7 | E115: 917 | F115: 86903 | G115: =(A115*600+1504084800)/86400+25569 -> 2017-09-01T14:30:00
A116: 320 | B116: 916.9 | C116: 917.85 | D116: 916 | E116: 916.25 | F116: 83716 | G116: =(A116*600+1504084800)/86400+25569 -> 2017-09-01T14:40:00
A117: 321 | B117: 918.05 | C117: 918.5 | D117: 916.9 | E117: 917 | F117: 67726 | G117: =(A117*600+1504084800)/86400+25569 -> 2017-09-01T14:50:00
A118: 322 | B118: 918.4 | C118: 919 | D118: 918.1 | E118: 918.1 | F118: 50320 | G118: =(A118*600+1504084800)/86400+25569 -> 2017-09-01T15:00:00
A119: 323 | B119: 920.05 | C119: 921 | D119: 918.15 | E119: 918.5 | F119: 225877 | G119: =(A119*600+1504084800)/86400+25569 -> 2017-09-01T15:10:00
A120: 324 | B120: 919.7 | C120: 920.5 | D120: 918.3 | E120: 920.1 | F120: 276993 | G120: =(A120*600+1504084800)/86400+25569 -> 2017-09-01T15:20:00
A121: 325 | B121: 919.85 | C121: 920 | D121: 918.95 | E121: 919.75 | F121: 268716 | G121: =(A121*600+1504084800)/86400+25569 -> 2017-09-01T15:30:00
A122: 720 | B122: 915.1 | C122: 921 | D122: 913.6 | E122: 920.85 | F122: 201679 | G122: =(A122*600+1504084800)/86400+25569 -> 2017-09-04T09:20:00
A123: 721 | B123: 914.7 | C123: 915.4 | D123: 911.2 | E123: 914.95 | F123: 179213 | G123: =(A123*600+1504084800)/86400+25569 -> 2017-09-04T09:30:00
A124: 722 | B124: 914.75 | C124: 915.1 | D124: 913.05 | E124: 914.75 | F124: 89591 | G124: =(A124*600+1504084800)/86400+25569 -> 2017-09-04T09:40:00
A125: 723 | B125: 913.7 | C125: 914.75 | D125: 913.5 | E125: 914.75 | F125: 80981 | G125: =(A125*600+1504084800)/86400+25569 -> 2017-09-04T09:50:00
A126: 724 | B126: 913.95 | C126: 914 | D126: 913 | E126: 913.65 | F126: 70763 | G126: =(A126*600+1504084800)/86400+25569 -> 2017-09-04T10:00:00
A127: 725 | B127: 913.85 | C127: 915 | D127: 913.5 | E127: 913.95 | F127: 56233 | G127: =(A127*600+1504084800)/86400+25569 -> 2017-09-04T10:10:00
A128: 726 | B128: 913.35 | C128: 914.9 | D128: 913.1 | E128: 913.65 | F128: 38582 | G128: =(A128*600+1504084800)/86400+25569 -> 2017-09-04T10:20:00
A129: 727 | B129: 913.5 | C129: 914.3 | D129: 913 | E129: 913.35 | F129: 45730 | G129: =(A129*600+1504084800)/86400+25569 -> 2017-09-04T10:30:00
A130: 728 | B130: 914.6 | C130: 915 | D130: 913.05 | E130: 913.85 | F130: 63810 | G130: =(A130*600+1504084800)/86400+25569 -> 2017-09-04T10:40:00
A131: 729 | B131: 914.3 | C131: 914.7 | D131: 913.6 | E131: 914.6 | F131: 50071 | G131: =(A131*600+1504084800)/86400+25569 -> 2017-09-04T10:50:00
A132: 730 | B132: 914.05 | C132: 914.6 | D132: 913.4 | E132: 914.35 | F132: 49945 | G132: =(A132*600+1504084800)/86400+25569 -> 2017-09-04T11:00:00
A133: 731 | B133: 914.4 | C133: 914.5 | D133: 913.45 | E133: 914.05 | F133: 45409 | G133: =(A133*600+1504084800)/86400+25569 -> 2017-09-04T11:10:00
A134: 732 | B134: 914.5 | C134: 914.85 | D134: 914.2 | E134: 914.4 | F134: 34486 | G134: =(A134*600+1504084800)/86400+25569 -> 2017-09-04T11:20:00
A135: 733 | B135: 914.2 | C135: 914.8 | D135: 914 | E135: 914.5 | F135: 30741 | G135: =(A135*600+1504084800)/86400+25569 -> 2017-09-04T11:30:00
A136: 734 | B136: 914.1 | C136: 914.65 | D136: 913.7 | E136: 914 | F136: 51877 | G136: =(A136*600+1504084800)/86400+25569 -> 2017-09-04T11:40:00
A137: 735 | B137: 911.5 | C137: 914.15 | D137: 911.1 | E137: 914.1 | F137: 156294 | G137: =(A137*600+1504084800)/86400+25569 -> 2017-09-04T11:50:00
A138: 736 | B138: 905.65 | C138: 911.85 | D138: 905.5 | E138: 911.3 | F138: 356014 | G138: =(A138*600+1504084800)/86400+25569 -> 2017-09-04T12:00:00
A139: 737 | B139: 898.45 | C139: 905.85 | D139: 898.1 | E139: 905.35 | F139: 574113 | G139: =(A139*600+1504084800)/86400+25569 -> 2017-09-04T12:10:00
A140: 738 | B140: 894.95 | C140: 901 | D140: 894.5 | E140: 898.5 | F140: 272098 | G140: =(A140*600+1504084800)/86400+25569 -> 2017-09-04T12:20:00
A141: 739 | B141: 899.1 | C141: 900 | D141: 893.55 | E141: 894.4 | F141: 195531 | G141: =(A141*600+1504084800)/86400+25569 -> 2017-09-04T12:30:00
A142: 740 | B142: 899.9 | C142: 899.95 | D142: 898.05 | E142: 899 | F142: 93894 | G142: =(A142*600+1504084800)/86400+25569 -> 2017-09-04T12:40:00
A143: 741 | B143: 898.85 | C143: 899.95 | D143: 897 | E143: 899.8 | F143: 94881 | G143: =(A143*600+1504084800)/86400+25569 -> 2017-09-04T12:50:00
A144: 742 | B144: 900.8 | C144: 901.1 | D144: 898.4 | E144: 898.4 | F144: 93338 | G144: =(A144*600+1504084800)/86400+25569 -> 2017-09-04T13:00:00
A145: 743 | B145: 900.45 | C145: 901.65 | D145: 898.85 | E145: 900.8 | F145: 265311 | G145: =(A145*600+1504084800)/86400+25569 -> 2017-09-04T13:10:00
A146: 744 | B146: 902.4 | C146: 903.4 | D146: 900 | E146: 900.2 | F146: 147601 | G146: =(A146*600+1504084800)/86400+25569 -> 2017-09-04T13:20:00
A147: 745 | B147: 900.6 | C147: 902.35 | D147: 900 | E147: 902.05 | F147: 84062 | G147: =(A147*600+1504084800)/86400+25569 -> 2017-09-04T13:30:00
A148: 746 | B148: 900 | C148: 900.8 | D148: 899.05 | E148: 900.65 | F148: 86001 | G148: =(A148*600+1504084800)/86400+25569 -> 2017-09-04T13:40:00
A149: 747 | B149: 900.25 | C149: 900.5 | D149: 899.55 | E149: 900 | F149: 40921 | G149: =(A149*600+1504084800)/86400+25569 -> 2017-09-04T13:50:00
A150: 748 | B150: 898.65 | C150: 900.5 | D150: 898.2 | E150: 900.05 | F150: 65544 | G150: =(A150*600+1504084800)/86400+25569 -> 2017-09-04T14:00:00
A151: 749 | B151: 900 | C151: 900 | D151: 898.05 | E151: 898.65 | F151: 86815 | G151: =(A151*600+1504084800)/86400+25569 -> 2017-09-04T14:10:00
A152: 750 | B152: 899.65 | C152: 900.2 | D152: 899 | E152: 899.95 | F152: 106411 | G152: =(A152*600+1504084800)/86400+25569 -> 2017-09-04T14:20:00
A153: 751 | B153: 901 | C153: 901 | D153: 899.6 | E153: 899.9 | F153: 84197 | G153: =(A153*600+1504084800)/86400+25569 -> 2017-09-04T14:30:00
A154: 752 | B154: 901 | C154: 901.55 | D154: 900.5 | E154: 900.7 | F154: 108082 | G154: =(A154*600+1504084800)/86400+25569 -> 2017-09-04T14:40:00
A155: 753 | B155: 900.6 | C155: 901.5 | D155: 900 | E155: 900.7 | F155: 119287 | G155: =(A155*600+1504084800)/86400+25569 -> 2017-09-04T14:50:00
A156: 754 | B156: 900 | C156: 901 | D156: 898.55 | E156: 900.7 | F156: 171884 | G156: =(A156*600+1504084800)/86400+25569 -> 2017-09-04T15:00:00
A157: 755 | B157: 900.8 | C157: 901.6 | D157: 899.35 | E157: 900.1 | F157: 249622 | G157: =(A157*600+1504084800)/86400+25569 -> 2017-09-04T15:10:00
A158: 756 | B158: 899.45 | C158: 901 | D158: 898.55 | E158: 900.8 | F158: 283363 | G158: =(A158*600+1504084800)/86400+25569 -> 2017-09-04T15:20:00
A159: 757 | B159: 899.95 | C159: 901 | D159: 899 | E159: 899.4 | F159: 248777 | G159: =(A159*600+1504084800)/86400+25569 -> 2017-09-04T15:30:00
A160: 864 | B160: 904 | C160: 904.65 | D160: 902.7 | E160: 903 | F160: 329938 | G160: =(A160*600+1504084800)/86400+25569 -> 2017-09-05T09:20:00
A161: 865 | B161: 901.7 | C161: 904 | D161: 899.1 | E161: 903.2 | F161: 345719 | G161: =(A161*600+1504084800)/86400+25569 -> 2017-09-05T09:30:00
A162: 866 | B162: 902.25 | C162: 903.45 | D162: 901.5 | E162: 901.6 | F162: 223722 | G162: =(A162*600+1504084800)/86400+25569 -> 2017-09-05T09:40:00
A163: 867 | B163: 902.65 | C163: 902.75 | D163: 901.5 | E163: 902.35 | F163: 72047 | G163: =(A163*600+1504084800)/86400+25569 -> 2017-09-05T09:50:00
A164: 868 | B164: 903 | C164: 903.25 | D164: 902 | E164: 902.75 | F164: 194456 | G164: =(A164*600+1504084800)/86400+25569 -> 2017-09-05T10:00:00
A165: 869 | B165: 902.35 | C165: 903 | D165: 902 | E165: 902.95 | F165: 66968 | G165: =(A165*600+1504084800)/86400+25569 -> 2017-09-05T10:10:00
A166: 870 | B166: 901.7 | C166: 902.5 | D166: 901.1 | E166: 902.45 | F166: 78116 | G166: =(A166*600+1504084800)/86400+25569 -> 2017-09-05T10:20:00
A167: 871 | B167: 900.35 | C167: 901.75 | D167: 900.05 | E167: 901.7 | F167: 198792 | G167: =(A167*600+1504084800)/86400+25569 -> 2017-09-05T10:30:00
A168: 872 | B168: 900.55 | C168: 901 | D168: 900.15 | E168: 900.35 | F168: 67979 | G168: =(A168*600+1504084800)/86400+25569 -> 2017-09-05T10:40:00
A169: 873 | B169: 897.55 | C169: 900.5 | D169: 897.55 | E169: 900.4 | F169: 139860 | G169: =(A169*600+1504084800)/86400+25569 -> 2017-09-05T10:50:00
A170: 874 | B170: 899.45 | C170: 899.5 | D170: 897.25 | E170: 897.55 | F170: 124044 | G170: =(A170*600+1504084800)/86400+25569 -> 2017-09-05T11:00:00
A171: 875 | B171: 899.9 | C171: 901 | D171: 898.9 | E171: 899.45 | F171: 105392 | G171: =(A171*600+1504084800)/86400+25569 -> 2017-09-05T11:10:00
A172: 876 | B172: 899.9 | C172: 900.2 | D172: 899 | E172: 899.85 | F172: 36439 | G172: =(A172*600+1504084800)/86400+25569 -> 2017-09-05T11:20:00
A173: 877 | B173: 899.25 | C173: 899.9 | D173: 898.5 | E173: 899.9 | F173: 31044 | G173: =(A173*600+1504084800)/86400+25569 -> 2017-09-05T11:30:00
A174: 878 | B174: 899.6 | C174: 900 | D174: 898.9 | E174: 899.05 | F174: 32326 | G174: =(A174*600+1504084800)/86400+25569 -> 2017-09-05T11:40:00
A175: 879 | B175: 899.8 | C175: 899.95 | D175: 899 | E175: 899.6 | F175: 52845 | G175: =(A175*600+1504084800)/86400+25569 -> 2017-09-05T11:50:00
A176: 880 | B176: 899.75 | C176: 900 | D176: 899.6 | E176: 899.9 | F176: 98339 | G176: =(A176*600+1504084800)/86400+25569 -> 2017-09-05T12:00:00
A177: 881 | B177: 898.8 | C177: 900 | D177: 898.5 | E177: 899.75 | F177: 62199 | G177: =(A177*600+1504084800)/86400+25569 -> 2017-09-05T12:10:00
A178: 882 | B178: 897.8 | C178: 899.25 | D178: 897.4 | E178: 898.75 | F178: 86158 | G178: =(A178*600+1504084800)/86400+25569 -> 2017-09-05T12:20:00
A179: 883 | B179: 898.5 | C179: 899 | D179: 897.5 | E179: 897.8 | F179: 80544 | G179: =(A179*600+1504084800)/86400+25569 -> 2017-09-05T12:30:00
A180: 884 | B180: 899 | C180: 899.4 | D180: 898.15 | E180: 898.55 | F180: 37299 | G180: =(A180*600+1504084800)/86400+25569 -> 2017-09-05T12:40:00
A181: 885 | B181: 898.95 | C181: 899.8 | D181: 898.6 | E181: 899.15 | F181: 100508 | G181: =(A181*600+1504084800)/86400+25569 -> 2017-09-05T12:50:00
A182: 886 | B182: 899 | C182: 899.5 | D182: 898.55 | E182: 899.2 | F182: 43323 | G182: =(A182*600+1504084800)/86400+25569 -> 2017-09-05T13:00:00
A183: 887 | B183: 898.85 | C183: 899.2 | D183: 898.55 | E183: 899 | F183: 84586 | G183: =(A183*600+1504084800)/86400+25569 -> 2017-09-05T13:10:00
A184: 888 | B184: 899.2 | C184: 899.5 | D184: 898.5 | E184: 898.9 | F184: 82505 | G184: =(A184*600+1504084800)/86400+25569 -> 2017-09-05T13:20:00
A185: 889 | B185: 899 | C185: 899.35 | D185: 898.5 | E185: 899.15 | F185: 37063 | G185: =(A185*600+1504084800)/86400+25569 -> 2017-09-05T13:30:00
A186: 890 | B186: 899.6 | C186: 899.75 | D186: 898.75 | E186: 899 | F186: 60537 | G186: =(A186*600+1504084800)/86400+25569 -> 2017-09-05T13:40:00
A187: 891 | B187: 899.85 | C187: 900 | D187: 899.1 | E187: 899.55 | F187: 123065 | G187: =(A187*600+1504084800)/86400+25569 -> 2017-09-05T13:50:00
A188: 892 | B188: 899.8 | C188: 900.1 | D188: 899.35 | E188: 899.75 | F188: 105222 | G188: =(A188*600+1504084800)/86400+25569 -> 2017-09-05T14:00:00
A189: 893 | B189: 900 | C189: 900.1 | D189: 898.5 | E189: 899.8 | F189: 106326 | G189: =(A189*600+1504084800)/86400+25569 -> 2017-09-05T14:10:00
A190: 894 | B190: 900.5 | C190: 901 | D190: 899.6 | E190: 900 | F190: 145538 | G190: =(A190*600+1504084800)/86400+25569 -> 2017-09-05T14:20:00
A191: 895 | B191: 901.95 | C191: 902.2 | D191: 900.1 | E191: 900.5 | F191: 311683 | G191: =(A191*600+1504084800)/86400+25569 -> 2017-09-05T14:30:00
A192: 896 | B192: 902.1 | C192: 902.8 | D192: 901.65 | E192: 902 | F192: 150772 | G192: =(A192*600+1504084800)/86400+25569 -> 2017-09-05T14:40:00
A193: 897 | B193: 901.95 | C193: 902.5 | D193: 901.1 | E193: 902.45 | F193: 163549 | G193: =(A193*600+1504084800)/86400+25569 -> 2017-09-05T14:50:00
A194: 898 | B194: 902 | C194: 902.15 | D194: 901.4 | E194: 901.9 | F194: 160577 | G194: =(A194*600+1504084800)/86400+25569 -> 2017-09-05T15:00:00
A195: 899 | B195: 902 | C195: 902.7 | D195: 901.3 | E195: 902 | F195: 209659 | G195: =(A195*600+1504084800)/86400+25569 -> 2017-09-05T15:10:00
A196: 900 | B196: 901.95 | C196: 902.4 | D196: 901 | E196: 902.05 | F196: 292440 | G196: =(A196*600+1504084800)/86400+25569 -> 2017-09-05T15:20:00
A197: 901 | B197: 901 | C197: 902 | D197: 900.45 | E197: 902 | F197: 241791 | G197: =(A197*600+1504084800)/86400+25569 -> 2017-09-05T15:30:00
A198: a1504669800 | B198: 898 | C198: 900 | D198: 892.8 | E198: 900 | F198: 166853 | G198: 2017-09-06T09:20:00
A199: 1 | B199: 896.05 | C199: 898.2 | D199: 893.3 | E199: 898 | F199: 190082 | G199: =(A199*600+1504689600)/86400+25569 -> 2017-09-06T09:30:00
A200: 2 | B200: 892.75 | C200: 896.3 | D200: 890.8 | E200: 896.2 | F200: 263456 | G200: =(A200*600+1504689600)/86400+25569 -> 2017-09-06T09:40:00
... 355 more rows

Sheet GetData
A2: Date | B2: Open | C2: High | D2: Low | E2: Close | F2: Volume | G2: TR | H2: +DM 1 | I2: -DM 1 | J2: TR14 | K2: +DM14 | L2: -DM14 | M2: +DI14 | N2: -DI14 | O2: DI 14 Diff | P2: DI 14 Sum | Q2: DX | R2: ADX | S2: Trend Stregth | T2: Trend Direction
A3: 2017-08-30T09:20:00 | B3: 935.95 | C3: 938.7 | D3: 931.2 | E3: 932.35 | F3: 736593 | S3: =IF(R3="","",IF(R3>=30,"Strong","Weak")) ->  | T3: =IF(R3="","",IF(M3>N3,"Bullish","Bearish")) ->  | Z3: http://finance.google.com/finance/getprices?q=INFY&x=NSE&i=600&p=15d&f=d,o,h,l,c,v
A4: 2017-08-30T09:30:00 | B4: 932.35 | C4: 933.9 | D4: 930.4 | E4: 933.5 | F4: 590340 | G4: =MAX(C4-D4,ABS(C4-E3),ABS(D4-E3)) -> 3.5 | H4: =IF(C4-C3>D3-D4,MAX(C4-C3,0),0) -> 0 | I4: =IF(D3-D4>C4-C3,MAX(D3-D4,0),0) -> 0.8 | S4: =IF(R4="","",IF(R4>=30,"Strong","Weak")) ->  | T4: =IF(R4="","",IF(M4>N4,"Bullish","Bearish")) -> 
A5: 2017-08-30T09:40:00 | B5: 933.5 | C5: 933.5 | D5: 932 | E5: 932.2 | F5: 228334 | G5: =MAX(C5-D5,ABS(C5-E4),ABS(D5-E4)) -> 1.5 | H5: =IF(C5-C4>D4-D5,MAX(C5-C4,0),0) -> 0 | I5: =IF(D4-D5>C5-C4,MAX(D4-D5,0),0) -> 0
A6: 2017-08-30T09:50:00 | B6: 932.25 | C6: 932.3 | D6: 931 | E6: 931.1 | F6: 267426 | G6: 1.3 | H6: 0 | I6: 1 | M6: Symbol | N6: INFY
A7: 2017-08-30T10:00:00 | B7: 931.15 | C7: 931.5 | D7: 929.05 | E7: 931.4 | F7: 283609 | G7: 2.45 | H7: 0 | I7: 1.95 | M7: Exchange | N7: NSE
A8: 2017-08-30T10:10:00 | B8: 931.35 | C8: 931.9 | D8: 930.5 | E8: 931.9 | F8: 196665 | G8: 1.4 | H8: 0.4 | I8: 0 | M8: Interval (mins) | N8: 10
A9: 2017-08-30T10:20:00 | B9: 931.9 | C9: 933.1 | D9: 931.85 | E9: 933 | F9: 191328 | G9: 1.25 | H9: 1.2 | I9: 0 | M9: Number of Days | N9: 15
A10: 2017-08-30T10:30:00 | B10: 933 | C10: 933 | D10: 932 | E10: 932.5 | F10: 79516 | G10: 1 | H10: 0 | I10: 0
A11: 2017-08-30T10:40:00 | B11: 932.45 | C11: 932.9 | D11: 931.5 | E11: 932.15 | F11: 224956 | G11: 1.4 | H11: 0 | I11: 0.5
A12: 2017-08-30T10:50:00 | B12: 932.15 | C12: 932.7 | D12: 931.4 | E12: 932 | F12: 171482 | G12: 1.3 | H12: 0 | I12: 0.1
A13: 2017-08-30T11:00:00 | B13: 932 | C13: 932.3 | D13: 928.1 | E13: 929.55 | F13: 193152 | G13: 4.2 | H13: 0 | I13: 3.3
A14: 2017-08-30T11:10:00 | B14: 929.6 | C14: 930.7 | D14: 929.35 | E14: 929.65 | F14: 133398 | G14: 1.35 | H14: 0 | I14: 0
A15: 2017-08-30T11:20:00 | B15: 929.7 | C15: 930.15 | D15: 926.2 | E15: 927.8 | F15: 370000 | G15: 3.95 | H15: 0 | I15: 3.15
A16: 2017-08-30T11:30:00 | B16: 927.5 | C16: 928 | D16: 926.7 | E16: 927.95 | F16: 132500 | G16: 1.3 | H16: 0 | I16: 0
A17: 2017-08-30T11:40:00 | B17: 927.95 | C17: 929.75 | D17: 927.95 | E17: 929.05 | F17: 109845 | G17: 1.8 | H17: 1.75 | I17: 0 | J17: =SUM(G4:G17) -> 27.7 | K17: =SUM(H4:H17) -> 3.35 | L17: =SUM(I4:I17) -> 10.8 | M17: =(100*(K17/J17)) -> 12.09386282 | N17: =(100*(L17/J17)) -> 38.98916968 | O17: =ABS(M17-N17) -> 26.89530686 | P17: =M17+N17 -> 51.08303249 | Q17: =(100*(O17/P17)) -> 52.65017668
A18: 2017-08-30T11:50:00 | B18: 929.35 | C18: 930.5 | D18: 929.05 | E18: 930.1 | F18: 89253 | G18: 1.45 | H18: 0.75 | I18: 0 | J18: =SUM(G5:G18) -> 25.65 | K18: 4.1 | L18: 10 | M18: =(100*(K18/J18)) -> 15.98440546 | N18: =(100*(L18/J18)) -> 38.98635478 | O18: =ABS(M18-N18) -> 23.00194932 | P18: =M18+N18 -> 54.97076023 | Q18: =(100*(O18/P18)) -> 41.84397163
A19: 2017-08-30T12:00:00 | B19: 930.1 | C19: 931.65 | D19: 930.05 | E19: 931 | F19: 125050 | G19: 1.6 | H19: 1.15 | I19: 0 | J19: =SUM(G6:G19) -> 25.75 | K19: 5.25 | L19: 10 | M19: 20.38834951 | N19: 38.83495146 | O19: 18.44660194 | P19: 59.22330097 | Q19: 31.14754098
A20: 2017-08-30T12:10:00 | B20: 930.9 | C20: 931.1 | D20: 930.55 | E20: 930.9 | F20: 115179 | G20: 0.55 | H20: 0 | I20: 0 | J20: =SUM(G7:G20) -> 25 | K20: 5.25 | L20: 9 | M20: 21 | N20: 36 | O20: 15 | P20: 57 | Q20: 26.31578947
A21: 2017-08-30T12:20:00 | B21: 930.95 | C21: 931.05 | D21: 930.55 | E21: 930.95 | F21: 97825 | G21: 0.5 | H21: 0 | I21: 0 | J21: =SUM(G8:G21) -> 23.05 | K21: 5.25 | L21: 7.05 | M21: 22.77657267 | N21: 30.5856833 | O21: 7.809110629 | P21: 53.36225597 | Q21: 14.63414634
A22: 2017-08-30T12:30:00 | B22: 930.95 | C22: 931.75 | D22: 930.4 | E22: 931.15 | F22: 191477 | G22: 1.35 | H22: 0.7 | I22: 0 | J22: =SUM(G9:G22) -> 23 | K22: 5.55 | L22: 7.05 | M22: 24.13043478 | N22: 30.65217391 | O22: 6.52173913 | P22: 54.7826087 | Q22: 11.9047619
A23: 2017-08-30T12:40:00 | B23: 931 | C23: 934 | D23: 930.8 | E23: 933.7 | F23: 556671 | G23: 3.2 | H23: 2.25 | I23: 0 | J23: =SUM(G10:G23) -> 24.95 | K23: 6.6 | L23: 7.05 | M23: 26.45290581 | N23: 28.25651303 | O23: 1.803607214 | P23: 54.70941884 | Q23: 3.296703297
A24: 2017-08-30T12:50:00 | B24: 933.3 | C24: 933.65 | D24: 930.95 | E24: 931.4 | F24: 154818 | G24: 2.75 | H24: 0 | I24: 0 | J24: =SUM(G11:G24) -> 26.7 | K24: 6.6 | L24: 7.05 | M24: 24.71910112 | N24: 26.40449438 | O24: 1.685393258 | P24: 51.12359551 | Q24: 3.296703297
A25: 2017-08-30T13:00:00 | B25: 931.4 | C25: 931.95 | D25: 930.1 | E25: 931.2 | F25: 128970 | G25: 1.85 | H25: 0 | I25: 0.85 | J25: =SUM(G12:G25) -> 27.15 | K25: 6.6 | L25: 7.4 | M25: 24.30939227 | N25: 27.25598527 | O25: 2.946593002 | P25: 51.56537753 | Q25: 5.714285714
A26: 2017-08-30T13:10:00 | B26: 931.2 | C26: 932 | D26: 931.05 | E26: 931.65 | F26: 105693 | G26: 0.95 | H26: 0.05 | I26: 0 | J26: =SUM(G13:G26) -> 26.8 | K26: 6.65 | L26: 7.3 | M26: 24.81343284 | N26: 27.23880597 | O26: 2.425373134 | P26: 52.05223881 | Q26: 4.659498208
A27: 2017-08-30T13:20:00 | B27: 931.7 | C27: 932.2 | D27: 930.8 | E27: 931.75 | F27: 120814 | G27: 1.4 | H27: 0 | I27: 0.25 | J27: =SUM(G14:G27) -> 24 | K27: 6.65 | L27: 4.25 | M27: 27.70833333 | N27: 17.70833333 | O27: 10 | P27: 45.41666667 | Q27: 22.01834862
A28: 2017-08-30T13:30:00 | B28: 931.75 | C28: 932 | D28: 930.3 | E28: 930.7 | F28: 111469 | G28: 1.7 | H28: 0 | I28: 0.5 | J28: =SUM(G15:G28) -> 24.35 | K28: 6.65 | L28: 4.75 | M28: 27.3100616 | N28: 19.50718686 | O28: 7.802874743 | P28: 46.81724846 | Q28: 16.66666667
A29: 2017-08-30T13:40:00 | B29: 930.3 | C29: 930.75 | D29: 929.5 | E29: 930.05 | F29: 155289 | G29: 1.25 | H29: 0 | I29: 0.8 | J29: =SUM(G16:G29) -> 21.65 | K29: 6.65 | L29: 2.4 | M29: 30.71593533 | N29: 11.08545035 | O29: 19.63048499 | P29: 41.80138568 | Q29: 46.96132597
A30: 2017-08-30T13:50:00 | B30: 930.05 | C30: 931.35 | D30: 930 | E30: 930.55 | F30: 80844 | G30: 1.35 | H30: 0.6 | I30: 0 | J30: =SUM(G17:G30) -> 21.7 | K30: 7.25 | L30: 2.4 | M30: 33.41013825 | N30: 11.05990783 | O30: 22.35023041 | P30: 44.47004608 | Q30: 50.25906736 | R30: =AVERAGE(Q17:Q30) -> 23.6692133 | S30: Weak | T30: Bullish
A31: 2017-08-30T14:00:00 | B31: 930.55 | C31: 930.75 | D31: 929.5 | E31: 929.8 | F31: 90854 | G31: 1.25 | H31: 0 | I31: 0.5 | J31: =SUM(G18:G31) -> 21.15 | K31: 5.5 | L31: 2.9 | M31: 26.00472813 | N31: 13.71158392 | O31: 12.29314421 | P31: 39.71631206 | Q31: 30.95238095 | R31: =AVERAGE(Q18:Q31) -> 22.11937074 | S31: Weak | T31: Bullish
A32: 2017-08-30T14:10:00 | B32: 929.85 | C32: 930.15 | D32: 929.1 | E32: 929.95 | F32: 126870 | G32: 1.05 | H32: 0 | I32: 0.4 | J32: =SUM(G19:G32) -> 20.75 | K32: 4.75 | L32: 3.3 | M32: 22.89156627 | N32: 15.90361446 | O32: 6.987951807 | P32: 38.79518072 | Q32: 18.01242236 | R32: 20.41711722 | S32: Weak | T32: Bullish
A33: 2017-08-30T14:20:00 | B33: 929.95 | C33: 930.9 | D33: 929.6 | E33: 930.1 | F33: 110267 | G33: 1.3 | H33: 0.75 | I33: 0 | J33: =SUM(G20:G33) -> 20.45 | K33: 4.35 | L33: 3.3 | M33: 21.27139364 | N33: 16.13691932 | O33: 5.134474328 | P33: 37.40831296 | Q33: 13.7254902 | R33: 19.17268503 | S33: Weak | T33: Bullish
A34: 2017-08-30T14:30:00 | B34: 930.05 | C34: 930.1 | D34: 928 | E34: 928.75 | F34: 175877 | G34: 2.1 | H34: 0 | I34: 1.6 | J34: =SUM(G21:G34) -> 22 | K34: 4.35 | L34: 4.9 | M34: 19.77272727 | N34: 22.27272727 | O34: 2.5 | P34: 42.04545455 | Q34: 5.945945946 | R34: 17.7176962 | S34: Weak | T34: Bearish
A35: 2017-08-30T14:40:00 | B35: 928.75 | C35: 929.3 | D35: 925.35 | E35: 926.4 | F35: 265063 | G35: 3.95 | H35: 0 | I35: 2.65 | J35: =SUM(G22:G35) -> 25.45 | K35: 4.35 | L35: 7.55 | M35: 17.09233792 | N35: 29.66601179 | O35: 12.57367387 | P35: 46.75834971 | Q35: 26.8907563 | R35: 18.59316834 | S35: Weak | T35: Bearish
A36: 2017-08-30T14:50:00 | B36: 926.55 | C36: 927.8 | D36: 925.95 | E36: 927.65 | F36: 157971 | G36: 1.85 | H36: 0 | I36: 0 | J36: =SUM(G23:G36) -> 25.95 | K36: 3.65 | L36: 7.55 | M36: 14.0655106 | N36: 29.09441233 | O36: 15.02890173 | P36: 43.15992293 | Q36: 34.82142857 | R36: 20.2300731 | S36: Weak | T36: Bearish
A37: 2017-08-30T15:00:00 | B37: 927.65 | C37: 928.25 | D37: 926.7 | E37: 927.5 | F37: 99782 | G37: 1.55 | H37: 0.45 | I37: 0 | J37: =SUM(G24:G37) -> 24.3 | K37: 1.85 | L37: 7.55 | M37: 7.613168724 | N37: 31.06995885 | O37: 23.45679012 | P37: 38.68312757 | Q37: 60.63829787 | R37: 24.32590129 | S37: Weak | T37: Bearish
A38: 2017-08-30T15:10:00 | B38: 927.5 | C38: 929.45 | D38: 926.05 | E38: 926.75 | F38: 301497 | G38: 3.4 | H38: 1.2 | I38: 0 | J38: =SUM(G25:G38) -> 24.95 | K38: 3.05 | L38: 7.55 | M38: 12.2244489 | N38: 30.26052104 | O38: 18.03607214 | P38: 42.48496994 | Q38: 42.45283019 | R38: 27.12276749 | S38: Weak | T38: Bearish
A39: 2017-08-30T15:20:00 | B39: 926.6 | C39: 926.85 | D39: 924.15 | E39: 926.45 | F39: 486907 | G39: 2.7 | H39: 0 | I39: 1.9 | J39: =SUM(G26:G39) -> 25.8 | K39: 3.05 | L39: 8.6 | M39: 11.82170543 | N39: 33.33333333 | O39: 21.51162791 | P39: 45.15503876 | Q39: 47.63948498 | R39: 30.11742459 | S39: Strong | T39: Bearish
A40: 2017-08-30T15:30:00 | B40: 926.3 | C40: 928 | D40: 925.5 | E40: 926.7 | F40: 289205 | G40: 2.5 | H40: 1.15 | I40: 0 | J40: =SUM(G27:G40) -> 27.35 | K40: 4.15 | L40: 8.6 | M40: 15.17367459 | N40: 31.44424132 | O40: 16.27056673 | P40: 46.6179159 | Q40: 34.90196078 | R40: 32.27760048 | S40: Strong | T40: Bearish
A41: 2017-08-31T09:20:00 | B41: 928.7 | C41: 928.9 | D41: 921.4 | E41: 924.45 | F41: 182317 | G41: 7.5 | H41: 0 | I41: 4.1 | J41: =SUM(G28:G41) -> 33.45 | K41: 4.15 | L41: 12.45 | M41: 12.40657698 | N41: 37.21973094 | O41: 24.81315396 | P41: 49.62630792 | Q41: 50 | R41: 34.27628987 | S41: Strong | T41: Bearish
A42: 2017-08-31T09:30:00 | B42: 924.2 | C42: 924.8 | D42: 921 | E42: 921 | F42: 200157 | G42: 3.8 | H42: 0 | I42: 0.4 | J42: =SUM(G29:G42) -> 35.55 | K42: 4.15 | L42: 12.35 | M42: 11.67369902 | N42: 34.73980309 | O42: 23.06610408 | P42: 46.41350211 | Q42: 49.6969697 | R42: 36.63559723 | S42: Strong | T42: Bearish
A43: 2017-08-31T09:40:00 | B43: 921.25 | C43: 921.6 | D43: 918.2 | E43: 919 | F43: 280092 | G43: 3.4 | H43: 0 | I43: 2.8 | J43: =SUM(G30:G43) -> 37.7 | K43: 4.15 | L43: 14.35 | M43: 11.00795756 | N43: 38.06366048 | O43: 27.05570292 | P43: 49.07161804 | Q43: 55.13513514 | R43: 37.21944074 | S43: Strong | T43: Bearish
A44: 2017-08-31T09:50:00 | B44: 919 | C44: 919.65 | D44: 914.65 | E44: 917.8 | F44: 377464 | G44: 5 | H44: 0 | I44: 3.55 | J44: =SUM(G31:G44) -> 41.35 | K44: 3.55 | L44: 17.9 | M44: 8.585247884 | N44: 43.28899637 | O44: 34.70374849 | P44: 51.87424426 | Q44: 66.8997669 | R44: 38.40806213 | S44: Strong | T44: Bearish
A45: 2017-08-31T10:00:00 | B45: 917.55 | C45: 919.6 | D45: 916.8 | E45: 919.4 | F45: 129828 | G45: 2.8 | H45: 0 | I45: 0 | J45: =SUM(G32:G45) -> 42.9 | K45: 3.55 | L45: 17.4 | M45: 8.275058275 | N45: 40.55944056 | O45: 32.28438228 | P45: 48.83449883 | Q45: 66.1097852 | R45: 40.9193053 | S45: Strong | T45: Bearish
A46: 2017-08-31T10:10:00 | B46: 919.4 | C46: 919.5 | D46: 915 | E46: 915 | F46: 344817 | G46: 4.5 | H46: 0 | I46: 1.8 | J46: =SUM(G33:G46) -> 46.35 | K46: 3.55 | L46: 18.8 | M46: 7.659115426 | N46: 40.5609493 | O46: 32.90183387 | P46: 48.22006472 | Q46: 68.23266219 | R46: 44.50646528 | S46: Strong | T46: Bearish
A47: 2017-08-31T10:20:00 | B47: 915.2 | C47: 918 | D47: 915.1 | E47: 917.1 | F47: 164616 | G47: 3 | H47: 0 | I47: 0 | J47: =SUM(G34:G47) -> 48.05 | K47: 2.8 | L47: 18.8 | M47: 5.827263267 | N47: 39.12591051 | O47: 33.29864724 | P47: 44.95317378 | Q47: 74.07407407 | R47: 48.81707842 | S47: Strong | T47: Bearish
A48: 2017-08-31T10:30:00 | B48: 917.2 | C48: 917.9 | D48: 916.5 | E48: 917.55 | F48: 66842 | G48: 1.4 | H48: 0 | I48: 0 | J48: =SUM(G35:G48) -> 47.35 | K48: 2.8 | L48: 17.2 | M48: 5.913410771 | N48: 36.32523759 | O48: 30.41182682 | P48: 42.23864836 | Q48: 72 | R48: 53.53522514 | S48: Strong | T48: Bearish
A49: 2017-08-31T10:40:00 | B49: 917.4 | C49: 917.55 | D49: 916.15 | E49: 916.7 | F49: 77939 | G49: 1.4 | H49: 0 | I49: 0.35 | J49: =SUM(G36:G49) -> 44.8 | K49: 2.8 | L49: 14.9 | M49: 6.25 | N49: 33.25892857 | O49: 27.00892857 | P49: 39.50892857 | Q49: 68.36158192 | R49: 56.49742697 | S49: Strong | T49: Bearish
A50: 2017-08-31T10:50:00 | B50: 916.6 | C50: 917.7 | D50: 916.35 | E50: 916.8 | F50: 80890 | G50: 1.35 | H50: 0.15 | I50: 0 | J50: =SUM(G37:G50) -> 44.3 | K50: 2.95 | L50: 14.9 | M50: 6.659142212 | N50: 33.63431151 | O50: 26.9751693 | P50: 40.29345372 | Q50: 66.94677871 | R50: 58.79209483 | S50: Strong | T50: Bearish
A51: 2017-08-31T11:00:00 | B51: 917 | C51: 917.3 | D51: 915.75 | E51: 916.6 | F51: 84741 | G51: 1.55 | H51: 0 | I51: 0.6 | J51: =SUM(G38:G51) -> 44.3 | K51: 2.5 | L51: 15.5 | M51: 5.643340858 | N51: 34.98871332 | O51: 29.34537246 | P51: 40.63205418 | Q51: 72.22222222 | R51: 59.619518 | S51: Strong | T51: Bearish
A52: 2017-08-31T11:10:00 | B52: 916.6 | C52: 917.5 | D52: 916.55 | E52: 917.25 | F52: 78839 | G52: 0.95 | H52: 0.2 | I52: 0 | J52: =SUM(G39:G52) -> 41.85 | K52: 1.5 | L52: 15.5 | M52: 3.584229391 | N52: 37.03703704 | O52: 33.45280765 | P52: 40.62126643 | Q52: 82.35294118 | R52: 62.46952593 | S52: Strong | T52: Bearish
A53: 2017-08-31T11:20:00 | B53: 917.25 | C53: 917.4 | D53: 916.5 | E53: 917.05 | F53: 67276 | G53: 0.9 | H53: 0 | I53: 0.05 | J53: =SUM(G40:G53) -> 40.05 | K53: 1.5 | L53: 13.65 | M53: 3.745318352 | N53: 34.082397 | O53: 30.33707865 | P53: 37.82771536 | Q53: 80.1980198 | R53: 64.79513556 | S53: Strong | T53: Bearish
A54: 2017-08-31T11:30:00 | B54: 917.15 | C54: 917.45 | D54: 916.8 | E54: 917.1 | F54: 96596 | G54: 0.65 | H54: 0.05 | I54: 0 | J54: =SUM(G41:G54) -> 38.2 | K54: 0.4 | L54: 13.65 | M54: 1.047120419 | N54: 35.73298429 | O54: 34.68586387 | P54: 36.78010471 | Q54: 94.30604982 | R54: 69.03828478 | S54: Strong | T54: Bearish
A55: 2017-08-31T11:40:00 | B55: 917.4 | C55: 917.5 | D55: 916.05 | E55: 916.25 | F55: 62813 | G55: 1.45 | H55: 0 | I55: 0.75 | J55: =SUM(G42:G55) -> 32.15 | K55: 0.4 | L55: 10.3 | M55: 1.244167963 | N55: 32.03732504 | O55: 30.79315708 | P55: 33.281493 | Q55: 92.52336449 | R55: 72.07566795 | S55: Strong | T55: Bearish
A56: 2017-08-31T11:50:00 | B56: 916.25 | C56: 917.3 | D56: 916.05 | E56: 916.3 | F56: 98951 | G56: 1.25 | H56: 0 | I56: 0 | J56: =SUM(G43:G56) -> 29.6 | K56: 0.4 | L56: 9.9 | M56: 1.351351351 | N56: 33.44594595 | O56: 32.09459459 | P56: 34.7972973 | Q56: 92.23300971 | R56: 75.11395653 | S56: Strong | T56: Bearish
A57: 2017-08-31T12:00:00 | B57: 916.4 | C57: 917 | D57: 915.45 | E57: 916.55 | F57: 110392 | G57: 1.55 | H57: 0 | I57: 0.6 | J57: =SUM(G44:G57) -> 27.75 | K57: 0.4 | L57: 7.7 | M57: 1.441441441 | N57: 27.74774775 | O57: 26.30630631 | P57: 29.18918919 | Q57: 90.12345679 | R57: 77.61312236 | S57: Strong | T57: Bearish
A58: 2017-08-31T12:10:00 | B58: 916.5 | C58: 918.95 | D58: 916.2 | E58: 918.85 | F58: 119101 | G58: 2.75 | H58: 1.95 | I58: 0 | J58: =SUM(G45:G58) -> 25.5 | K58: 2.35 | L58: 4.15 | M58: 9.215686275 | N58: 16.2745098 | O58: 7.058823529 | P58: 25.49019608 | Q58: 27.69230769 | R58: 74.81258956 | S58: Strong | T58: Bearish
A59: 2017-08-31T12:20:00 | B59: 918.7 | C59: 919.75 | D59: 918.1 | E59: 918.95 | F59: 126977 | G59: 1.65 | H59: 0.8 | I59: 0 | J59: =SUM(G46:G59) -> 24.35 | K59: 3.15 | L59: 4.15 | M59: 12.93634497 | N59: 17.04312115 | O59: 4.106776181 | P59: 29.97946612 | Q59: 13.69863014 | R59: 71.06893562 | S59: Strong | T59: Bearish
A60: 2017-08-31T12:30:00 | B60: 918.7 | C60: 919 | D60: 918 | E60: 918.3 | F60: 79003 | G60: 1 | H60: 0 | I60: 0.1 | J60: =SUM(G47:G60) -> 20.85 | K60: 3.15 | L60: 2.45 | M60: 15.10791367 | N60: 11.75059952 | O60: 3.357314149 | P60: 26.85851319 | Q60: 12.5 | R60: 67.08803118 | S60: Strong | T60: Bullish
A61: 2017-08-31T12:40:00 | B61: 918.05 | C61: 920 | D61: 918.05 | E61: 918.65 | F61: 114542 | G61: 1.95 | H61: 1 | I61: 0 | J61: =SUM(G48:G61) -> 19.8 | K61: 4.15 | L61: 2.45 | M61: 20.95959596 | N61: 12.37373737 | O61: 8.585858586 | P61: 33.33333333 | Q61: 25.75757576 | R61: 63.63685273 | S61: Strong | T61: Bullish
A62: 2017-08-31T12:50:00 | B62: 918.65 | C62: 919.6 | D62: 918.55 | E62: 919.45 | F62: 62907 | G62: 1.05 | H62: 0 | I62: 0 | J62: =SUM(G49:G62) -> 19.45 | K62: 4.15 | L62: 2.45 | M62: 21.33676093 | N62: 12.59640103 | O62: 8.740359897 | P62: 33.93316195 | Q62: 25.75757576 | R62: 60.33382243 | S62: Strong | T62: Bullish
A63: 2017-08-31T13:00:00 | B63: 919.45 | C63: 919.5 | D63: 919 | E63: 919.2 | F63: 64218 | G63: 0.5 | H63: 0 | I63: 0 | J63: =SUM(G50:G63) -> 18.55 | K63: 4.15 | L63: 2.1 | M63: 22.37196765 | N63: 11.32075472 | O63: 11.05121294 | P63: 33.69272237 | Q63: 32.8 | R63: 57.79370943 | S63: Strong | T63: Bullish
A64: 2017-08-31T13:10:00 | B64: 919.2 | C64: 919.2 | D64: 917.55 | E64: 918.05 | F64: 104487 | G64: 1.65 | H64: 0 | I64: 1.45 | J64: =SUM(G51:G64) -> 18.85 | K64: 4 | L64: 3.55 | M64: 21.22015915 | N64: 18.83289125 | O64: 2.387267905 | P64: 40.0530504 | Q64: 5.960264901 | R64: 53.43752988 | S64: Strong | T64: Bullish
A65: 2017-08-31T13:20:00 | B65: 918.4 | C65: 918.6 | D65: 915 | E65: 915.7 | F65: 147837 | G65: 3.6 | H65: 0 | I65: 2.55 | J65: =SUM(G52:G65) -> 20.9 | K65: 4 | L65: 5.5 | M65: 19.13875598 | N65: 26.31578947 | O65: 7.177033493 | P65: 45.45454545 | Q65: 15.78947368 | R65: 49.40661927 | S65: Strong | T65: Bearish
A66: 2017-08-31T13:30:00 | B66: 915.8 | C66: 917.6 | D66: 915.8 | E66: 916.2 | F66: 105097 | G66: 1.9 | H66: 0 | I66: 0 | J66: =SUM(G53:G66) -> 21.85 | K66: 3.8 | L66: 5.5 | M66: 17.39130435 | N66: 25.17162471 | O66: 7.780320366 | P66: 42.56292906 | Q66: 18.27956989 | R66: 44.82994989 | S66: Strong | T66: Bearish
A67: 2017-08-31T13:40:00 | B67: 916.2 | C67: 917.1 | D67: 915.55 | E67: 916.3 | F67: 92717 | G67: 1.55 | H67: 0 | I67: 0.25 | J67: =SUM(G54:G67) -> 22.5 | K67: 3.8 | L67: 5.7 | M67: 16.88888889 | N67: 25.33333333 | O67: 8.444444444 | P67: 42.22222222 | Q67: 20 | R67: 40.53009133 | S67: Strong | T67: Bearish
A68: 2017-08-31T13:50:00 | B68: 916.35 | C68: 918.45 | D68: 916.15 | E68: 918.35 | F68: 94256 | G68: 2.3 | H68: 1.35 | I68: 0 | J68: =SUM(G55:G68) -> 24.15 | K68: 5.1 | L68: 5.7 | M68: 21.11801242 | N68: 23.60248447 | O68: 2.48447205 | P68: 44.72049689 | Q68: 5.555555556 | R68: 34.19077031 | S68: =IF(R68="","",IF(R68>=30,"Strong","Weak")) -> Strong | T68: =IF(R68="","",IF(M68>N68,"Bullish","Bearish")) -> Bearish
A69: 2017-08-31T14:00:00 | B69: 918.4 | C69: 919.2 | D69: 917.5 | E69: 918.05 | F69: 90593 | G69: =MAX(C69-D69,ABS(C69-E68),ABS(D69-E68)) -> 1.7 | H69: =IF(C69-C68>D68-D69,MAX(C69-C68,0),0) -> 0.75 | I69: =IF(D68-D69>C69-C68,MAX(D68-D69,0),0) -> 0 | J69: =SUM(G56:G69) -> 24.4 | K69: 5.85 | L69: 4.95 | M69: 23.97540984 | N69: 20.28688525 | O69: 3.68852459 | P69: 44.26229508 | Q69: 8.333333333 | R69: 28.17719666 | S69: Weak | T69: Bullish
A70: 2017-08-31T14:10:00 | B70: 918.1 | C70: 918.6 | D70: 917.2 | E70: 918.15 | F70: 72864 | G70: 1.4 | H70: 0 | I70: 0.3 | J70: =SUM(G57:G70) -> 24.55 | K70: 5.85 | L70: 5.25 | M70: 23.82892057 | N70: 21.38492872 | O70: 2.443991853 | P70: 45.21384929 | Q70: 5.405405405 | R70: 21.97522492 | S70: Weak | T70: Bullish
A71: 2017-08-31T14:20:00 | B71: 918.1 | C71: 919.45 | D71: 918 | E71: 919.45 | F71: 67750 | G71: 1.45 | H71: 0.85 | I71: 0 | J71: =SUM(G58:G71) -> 24.45 | K71: 6.7 | L71: 4.65 | M71: 27.40286299 | N71: 19.01840491 | O71: 8.384458078 | P71: 46.42126789 | Q71: 18.06167401 | R71: 16.82795472 | S71: Weak | T71: Bullish
A72: 2017-08-31T14:30:00 | B72: 919.45 | C72: 919.45 | D72: 917.35 | E72: 918.05 | F72: 94380 | G72: 2.1 | H72: 0 | I72: 0.65 | J72: =SUM(G59:G72) -> 23.8 | K72: 4.75 | L72: 5.3 | M72: 19.95798319 | N72: 22.26890756 | O72: 2.31092437 | P72: 42.22689076 | Q72: 5.472636816 | R72: 15.24083537 | S72: Weak | T72: Bearish
A73: 2017-08-31T14:40:00 | B73: 918.05 | C73: 919.35 | D73: 918 | E73: 918.25 | F73: 95365 | G73: 1.35 | H73: 0 | I73: 0 | J73: =SUM(G60:G73) -> 23.5 | K73: 3.95 | L73: 5.3 | M73: 16.80851064 | N73: 22.55319149 | O73: 5.744680851 | P73: 39.36170213 | Q73: 14.59459459 | R73: 15.30483284 | S73: Weak | T73: Bearish
A74: 2017-08-31T14:50:00 | B74: 918.5 | C74: 919.7 | D74: 918.5 | E74: 919.2 | F74: 92050 | G74: 1.45 | H74: 0.35 | I74: 0 | J74: =SUM(G61:G74) -> 23.95 | K74: 4.3 | L74: 5.2 | M74: 17.95407098 | N74: 21.71189979 | O74: 3.75782881 | P74: 39.66597077 | Q74: 9.473684211 | R74: 15.08866742 | S74: Weak | T74: Bearish
A75: 2017-08-31T15:00:00 | B75: 919.1 | C75: 919.65 | D75: 917.2 | E75: 917.75 | F75: 107071 | G75: 2.45 | H75: 0 | I75: 1.3 | J75: =SUM(G62:G75) -> 24.45 | K75: 3.3 | L75: 6.5 | M75: 13.49693252 | N75: 26.58486708 | O75: 13.08793456 | P75: 40.08179959 | Q75: 32.65306122 | R75: 15.5812021 | S75: Weak | T75: Bearish
A76: 2017-08-31T15:10:00 | B76: 917.6 | C76: 918.95 | D76: 914.7 | E76: 914.85 | F76: 1131662 | G76: 4.25 | H76: 0 | I76: 2.5 | J76: =SUM(G63:G76) -> 27.65 | K76: 3.3 | L76: 9 | M76: 11.93490054 | N76: 32.54972875 | O76: 20.61482821 | P76: 44.48462929 | Q76: 46.34146341 | R76: 17.05147979 | S76: Weak | T76: Bearish
A77: 2017-08-31T15:20:00 | B77: 914.9 | C77: 915 | D77: 912.9 | E77: 913.1 | F77: 1105168 | G77: 2.1 | H77: 0 | I77: 1.8 | J77: =SUM(G64:G77) -> 29.25 | K77: 3.3 | L77: 10.8 | M77: 11.28205128 | N77: 36.92307692 | O77: 25.64102564 | P77: 48.20512821 | Q77: 53.19148936 | R77: 18.50801474 | S77: Weak | T77: Bearish
A78: 2017-08-31T15:30:00 | B78: 913.1 | C78: 915 | D78: 913.1 | E78: 915 | F78: 1017668 | G78: 1.9 | H78: 0 | I78: 0 | J78: =SUM(G65:G78) -> 29.5 | K78: 3.3 | L78: 9.35 | M78: 11.18644068 | N78: 31.69491525 | O78: 20.50847458 | P78: 42.88135593 | Q78: 47.82608696 | R78: 21.4984306 | S78: Weak | T78: Bearish
A79: 2017-09-01T09:20:00 | B79: 915.4 | C79: 915.4 | D79: 910 | E79: 913.2 | F79: 256729 | G79: 5.4 | H79: 0 | I79: 3.1 | J79: =SUM(G66:G79) -> 31.3 | K79: 3.3 | L79: 9.9 | M79: 10.54313099 | N79: 31.62939297 | O79: 21.08626198 | P79: 42.17252396 | Q79: 50 | R79: 23.94203963 | S79: Weak | T79: Bearish
A80: 2017-09-01T09:30:00 | B80: 913.2 | C80: 921.45 | D80: 912.6 | E80: 919.95 | F80: 403150 | G80: 8.85 | H80: 6.05 | I80: 0 | J80: =SUM(G67:G80) -> 38.25 | K80: 9.35 | L80: 9.9 | M80: 24.44444444 | N80: 25.88235294 | O80: 1.437908497 | P80: 50.32679739 | Q80: 2.857142857 | R80: 22.8404377 | S80: Weak | T80: Bearish
A81: 2017-09-01T09:40:00 | B81: 919.9 | C81: 920.7 | D81: 918 | E81: 920.7 | F81: 217308 | G81: 2.7 | H81: 0 | I81: 0 | J81: =SUM(G68:G81) -> 39.4 | K81: 9.35 | L81: 9.65 | M81: 23.73096447 | N81: 24.49238579 | O81: 0.7614213198 | P81: 48.22335025 | Q81: 1.578947368 | R81: 21.52464822 | S81: Weak | T81: Bearish
A82: 2017-09-01T09:50:00 | B82: 920.7 | C82: 925.8 | D82: 920.35 | E82: 924.7 | F82: 382411 | G82: 5.45 | H82: 5.1 | I82: 0 | J82: =SUM(G69:G82) -> 42.55 | K82: 13.1 | L82: 9.65 | M82: =(100*(K82/J82)) -> 30.78730905 | N82: =(100*(L82/J82)) -> 22.67920094 | O82: =ABS(M82-N82) -> 8.108108108 | P82: =M82+N82 -> 53.46650999 | Q82: =(100*(O82/P82)) -> 15.16483516 | R82: 22.21102534 | S82: Weak | T82: Bullish
A83: 2017-09-01T10:00:00 | B83: 924.75 | C83: 924.9 | D83: 924 | E83: 924.4 | F83: 110798 | G83: 0.9 | H83: 0 | I83: 0 | J83: =SUM(G70:G83) -> 41.75 | K83: 12.35 | L83: 9.65 | M83: 29.58083832 | N83: 23.11377246 | O83: 6.467065868 | P83: 52.69461078 | Q83: 12.27272727 | R83: 22.49241062 | S83: Weak | T83: Bullish
A84: 2017-09-01T10:10:00 | B84: 924.3 | C84: 924.75 | D84: 921.6 | E84: 922.75 | F84: 160929 | G84: 3.15 | H84: 0 | I84: 2.4 | J84: =SUM(G71:G84) -> 43.5 | K84: 12.35 | L84: 11.75 | M84: 28.3908046 | N84: 27.01149425 | O84: 1.379310345 | P84: 55.40229885 | Q84: 2.489626556 | R84: 22.2841407 | S84: Weak | T84: Bullish
A85: 2017-09-01T10:20:00 | B85: 922.7 | C85: 923.55 | D85: 922.35 | E85: 923 | F85: 101561 | G85: 1.2 | H85: 0 | I85: 0 | J85: =SUM(G72:G85) -> 43.25 | K85: 11.5 | L85: 11.75 | M85: 26.58959538 | N85: 27.16763006 | O85: 0.5780346821 | P85: 53.75722543 | Q85: 1.075268817 | R85: 21.07082604 | S85: Weak | T85: Bearish
A86: 2017-09-01T10:30:00 | B86: 922.5 | C86: 923 | D86: 920.8 | E86: 920.9 | F86: 128135 | G86: 2.2 | H86: 0 | I86: 1.55 | J86: =SUM(G73:G86) -> 43.35 | K86: 11.5 | L86: 12.65 | M86: 26.52825836 | N86: 29.1810842 | O86: 2.652825836 | P86: 55.70934256 | Q86: 4.761904762 | R86: 21.02005947 | S86: Weak | T86: Bearish
A87: 2017-09-01T10:40:00 | B87: 921 | C87: 922.2 | D87: 920.2 | E87: 921.45 | F87: 85551 | G87: 2 | H87: 0 | I87: 0.6 | J87: =SUM(G74:G87) -> 44 | K87: 11.5 | L87: 13.25 | M87: 26.13636364 | N87: 30.11363636 | O87: 3.977272727 | P87: 56.25 | Q87: 7.070707071 | R87: 20.48263893 | S87: Weak | T87: Bearish
A88: 2017-09-01T10:50:00 | B88: 921.1 | C88: 921.35 | D88: 921 | E88: 921.2 | F88: 20220 | G88: 0.45 | H88: 0 | I88: 0 | J88: =SUM(G75:G88) -> 43 | K88: 11.15 | L88: 13.25 | M88: 25.93023256 | N88: 30.81395349 | O88: 4.88372093 | P88: 56.74418605 | Q88: 8.606557377 | R88: 20.4207013 | S88: Weak | T88: Bearish
A89: 2017-09-01T11:00:00 | B89: 921.2 | C89: 921.25 | D89: 920.3 | E89: 920.6 | F89: 70214 | G89: 0.95 | H89: 0 | I89: 0.7 | J89: =SUM(G76:G89) -> 41.5 | K89: 11.15 | L89: 12.65 | M89: 26.86746988 | N89: 30.48192771 | O89: 3.614457831 | P89: 57.34939759 | Q89: 6.302521008 | R89: 18.53851986 | S89: Weak | T89: Bearish
A90: 2017-09-01T11:10:00 | B90: 920.5 | C90: 921.75 | D90: 920.5 | E90: 920.95 | F90: 63112 | G90: 1.25 | H90: 0.5 | I90: 0 | J90: =SUM(G77:G90) -> 38.5 | K90: 11.65 | L90: 10.15 | M90: 30.25974026 | N90: 26.36363636 | O90: 3.896103896 | P90: 56.62337662 | Q90: 6.880733945 | R90: 15.71989632 | S90: Weak | T90: Bullish
A91: 2017-09-01T11:20:00 | B91: 920.95 | C91: 921 | D91: 918.1 | E91: 919.55 | F91: 127358 | G91: 2.9 | H91: 0 | I91: 2.4 | J91: =SUM(G78:G91) -> 39.3 | K91: 11.65 | L91: 10.75 | M91: 29.6437659 | N91: 27.35368957 | O91: 2.290076336 | P91: 56.99745547 | Q91: 4.017857143 | R91: 12.20749402 | S91: Weak | T91: Bullish
A92: 2017-09-01T11:30:00 | B92: 919.2 | C92: 919.75 | D92: 919.1 | E92: 919.65 | F92: 39374 | G92: 0.65 | H92: 0 | I92: 0 | J92: =SUM(G79:G92) -> 38.05 | K92: 11.65 | L92: 10.75 | M92: 30.61760841 | N92: 28.25229961 | O92: 2.365308804 | P92: 58.86990802 | Q92: 4.017857143 | R92: 9.078334749 | S92: Weak | T92: Bullish
A93: 2017-09-01T11:40:00 | B93: 919.6 | C93: 919.8 | D93: 919.1 | E93: 919.2 | F93: 41971 | G93: 0.7 | H93: 0.05 | I93: 0 | J93: =SUM(G80:G93) -> 33.35 | K93: 11.7 | L93: 7.65 | M93: 35.08245877 | N93: 22.93853073 | O93: 12.14392804 | P93: 58.02098951 | Q93: 20.93023256 | R93: 7.001922789 | S93: Weak | T93: Bullish
A94: 2017-09-01T11:50:00 | B94: 919.25 | C94: 919.55 | D94: 918.25 | E94: 918.5 | F94: 70424 | G94: 1.3 | H94: 0 | I94: 0.85 | J94: =SUM(G81:G94) -> 25.8 | K94: 5.65 | L94: 8.5 | M94: 21.89922481 | N94: 32.94573643 | O94: 11.04651163 | P94: 54.84496124 | Q94: 20.14134276 | R94: 8.236508496 | S94: Weak | T94: Bearish
A95: 2017-09-01T12:00:00 | B95: 918.45 | C95: 918.45 | D95: 916.65 | E95: 917.6 | F95: 91125 | G95: 1.85 | H95: 0 | I95: 1.6 | J95: =SUM(G82:G95) -> 24.95 | K95: 5.65 | L95: 10.1 | M95: 22.64529058 | N95: 40.48096192 | O95: 17.83567134 | P95: 63.12625251 | Q95: 28.25396825 | R95: =AVERAGE(Q82:Q95) -> 10.14186713 | S95: Weak | T95: Bearish
A96: 2017-09-01T12:10:00 | B96: 917.65 | C96: 919 | D96: 917.5 | E96: 918.9 | F96: 51922 | G96: 1.5 | H96: 0.55 | I96: 0 | J96: =SUM(G83:G96) -> 21 | K96: 1.1 | L96: 10.1 | M96: 5.238095238 | N96: 48.0952381 | O96: 42.85714286 | P96: 53.33333333 | Q96: 80.35714286 | R96: 14.79846054 | S96: Weak | T96: Bearish
A97: 2017-09-01T12:20:00 | B97: 918.95 | C97: 919 | D97: 917.85 | E97: 918.5 | F97: 58667 | G97: 1.15 | H97: 0 | I97: 0 | J97: =SUM(G84:G97) -> 21.25 | K97: 1.1 | L97: 10.1 | M97: 5.176470588 | N97: 47.52941176 | O97: 42.35294118 | P97: 52.70588235 | Q97: 80.35714286 | R97: 19.66163308 | S97: Weak | T97: Bearish
A98: 2017-09-01T12:30:00 | B98: 918.35 | C98: 919 | D98: 917.85 | E98: 918.7 | F98: 66893 | G98: 1.15 | H98: 0 | I98: 0 | J98: =SUM(G85:G98) -> 19.25 | K98: 1.1 | L98: 7.7 | M98: 5.714285714 | N98: 40 | O98: 34.28571429 | P98: 45.71428571 | Q98: 75 | R98: 24.84094547 | S98: Weak | T98: Bearish
A99: 2017-09-01T12:40:00 | B99: 918.65 | C99: 919.4 | D99: 918 | E99: 918.4 | F99: 66418 | G99: 1.4 | H99: 0.4 | I99: 0 | J99: =SUM(G86:G99) -> 19.45 | K99: 1.5 | L99: 7.7 | M99: 7.712082262 | N99: 39.58868895 | O99: 31.87660668 | P99: 47.30077121 | Q99: 67.39130435 | R99: 29.57780515 | S99: Weak | T99: Bearish
A100: 2017-09-01T12:50:00 | B100: 918.1 | C100: 918.9 | D100: 918.05 | E100: 918.7 | F100: 50332 | G100: 0.85 | H100: 0 | I100: 0 | J100: =SUM(G87:G100) -> 18.1 | K100: 1.5 | L100: 6.15 | M100: 8.287292818 | N100: 33.97790055 | O100: 25.69060773 | P100: 42.26519337 | Q100: 60.78431373 | R100: 33.57940579 | S100: Strong | T100: Bearish
A101: 2017-09-01T13:00:00 | B101: 918.65 | C101: 918.9 | D101: 918.05 | E101: 918.25 | F101: 44955 | G101: 0.85 | H101: 0 | I101: 0 | J101: =SUM(G88:G101) -> 16.95 | K101: 1.5 | L101: 5.55 | M101: 8.849557522 | N101: 32.74336283 | O101: 23.89380531 | P101: 41.59292035 | Q101: 57.44680851 | R101: 37.17769875 | S101: Strong | T101: Bearish
A102: 2017-09-01T13:10:00 | B102: 918.25 | C102: 918.7 | D102: 918.05 | E102: 918.3 | F102: 33120 | G102: 0.65 | H102: 0 | I102: 0 | J102: =SUM(G89:G102) -> 17.15 | K102: 1.5 | L102: 5.55 | M102: 8.746355685 | N102: 32.36151603 | O102: 23.61516035 | P102: 41.10787172 | Q102: 57.44680851 | R102: 40.66628812 | S102: Strong | T102: Bearish
A103: 2017-09-01T13:20:00 | B103: 918.25 | C103: 918.6 | D103: 917.85 | E103: 917.9 | F103: 52167 | G103: 0.75 | H103: 0 | I103: 0.2 | J103: =SUM(G90:G103) -> 16.95 | K103: 1.5 | L103: 5.05 | M103: 8.849557522 | N103: 29.79351032 | O103: 20.9439528 | P103: 38.64306785 | Q103: 54.19847328 | R103: 44.08742756 | S103: Strong | T103: Bearish
A104: 2017-09-01T13:30:00 | B104: 917.8 | C104: 918.15 | D104: 917.5 | E104: 918.15 | F104: 45446 | G104: 0.65 | H104: 0 | I104: 0.35 | J104: =SUM(G91:G104) -> 16.35 | K104: 1 | L104: 5.4 | M104: 6.116207951 | N104: 33.02752294 | O104: 26.91131498 | P104: 39.14373089 | Q104: 68.75 | R104: 48.50666085 | S104: Strong | T104: Bearish
A105: 2017-09-01T13:40:00 | B105: 918.15 | C105: 918.6 | D105: 917.8 | E105: 918.25 | F105: 30926 | G105: 0.8 | H105: 0.45 | I105: 0 | J105: =SUM(G92:G105) -> 14.25 | K105: 1.45 | L105: 3 | M105: 10.1754386 | N105: 21.05263158 | O105: 10.87719298 | P105: 31.22807018 | Q105: 34.83146067 | R105: 50.70763253 | S105: Strong | T105: Bearish
A106: 2017-09-01T13:50:00 | B106: 918.25 | C106: 919.5 | D106: 918.1 | E106: 919.2 | F106: 50721 | G106: 1.4 | H106: 0.9 | I106: 0 | J106: =SUM(G93:G106) -> 15 | K106: 2.35 | L106: 3 | M106: 15.66666667 | N106: 20 | O106: 4.333333333 | P106: 35.66666667 | Q106: 12.14953271 | R106: 51.2884665 | S106: Strong | T106: Bearish
A107: 2017-09-01T14:00:00 | B107: 919 | C107: 919.25 | D107: 918.25 | E107: 918.25 | F107: 45811 | G107: 1 | H107: 0 | I107: 0 | J107: =SUM(G94:G107) -> 15.3 | K107: 2.3 | L107: 3 | M107: 15.03267974 | N107: 19.60784314 | O107: 4.575163399 | P107: 34.64052288 | Q107: 13.20754717 | R107: 50.73684612 | S107: Strong | T107: Bearish
A108: 2017-09-01T14:10:00 | B108: 918.4 | C108: 919.25 | D108: 917.55 | E108: 918.3 | F108: 47760 | G108: 1.7 | H108: 0 | I108: 0.7 | J108: =SUM(G95:G108) -> 15.7 | K108: 2.3 | L108: 2.85 | M108: 14.64968153 | N108: 18.15286624 | O108: 3.503184713 | P108: 32.80254777 | Q108: 10.67961165 | R108: 50.06100818 | S108: Strong | T108: Bearish
A109: 2017-09-01T14:20:00 | B109: 918.2 | C109: 918.3 | D109: 916.3 | E109: 917 | F109: 64890 | G109: 2 | H109: 0 | I109: 1.25 | J109: =SUM(G96:G109) -> 15.85 | K109: 2.3 | L109: 2.5 | M109: 14.51104101 | N109: 15.77287066 | O109: 1.261829653 | P109: 30.28391167 | Q109: 4.166666667 | R109: 48.34048664 | S109: Strong | T109: Bearish
A110: 2017-09-01T14:30:00 | B110: 917 | C110: 917.35 | D110: 915.7 | E110: 916.15 | F110: 86903 | G110: 1.65 | H110: 0 | I110: 0.6 | J110: =SUM(G97:G110) -> 16 | K110: 1.75 | L110: 3.1 | M110: 10.9375 | N110: 19.375 | O110: 8.4375 | P110: 30.3125 | Q110: 27.83505155 | R110: 44.58890869 | S110: Strong | T110: Bearish
A111: 2017-09-01T14:40:00 | B111: 916.25 | C111: 917.85 | D111: 916 | E111: 916.9 | F111: 83716 | G111: 1.85 | H111: 0.5 | I111: 0 | J111: =SUM(G98:G111) -> 16.7 | K111: 2.25 | L111: 3.1 | M111: 13.47305389 | N111: 18.56287425 | O111: 5.089820359 | P111: 32.03592814 | Q111: 15.88785047 | R111: 39.98395923 | S111: Strong | T111: Bearish
A112: 2017-09-01T14:50:00 | B112: 917 | C112: 918.5 | D112: 916.9 | E112: 918.05 | F112: 67726 | G112: 1.6 | H112: 0.65 | I112: 0 | J112: =SUM(G99:G112) -> 17.15 | K112: 2.9 | L112: 3.1 | M112: 16.90962099 | N112: 18.07580175 | O112: 1.166180758 | P112: 34.98542274 | Q112: 3.333333333 | R112: 34.86491161 | S112: Strong | T112: Bearish
A113: 2017-09-01T15:00:00 | B113: 918.1 | C113: 919 | D113: 918.1 | E113: 918.4 | F113: 50320 | G113: 0.95 | H113: 0.5 | I113: 0 | J113: =SUM(G100:G113) -> 16.7 | K113: 3 | L113: 3.1 | M113: 17.96407186 | N113: 18.56287425 | O113: 0.5988023952 | P113: 36.52694611 | Q113: 1.639344262 | R113: 30.16834304 | S113: Strong | T113: Bearish
A114: 2017-09-01T15:10:00 | B114: 918.5 | C114: 921 | D114: 918.15 | E114: 920.05 | F114: 225877 | G114: 2.85 | H114: 2 | I114: 0 | J114: =SUM(G101:G114) -> 18.7 | K114: 5 | L114: 3.1 | M114: 26.73796791 | N114: 16.57754011 | O114: 10.16042781 | P114: 43.31550802 | Q114: 23.45679012 | R114: 27.50209135 | S114: Weak | T114: Bullish
A115: 2017-09-01T15:20:00 | B115: 920.1 | C115: 920.5 | D115: 918.3 | E115: 919.7 | F115: 276993 | G115: 2.2 | H115: 0 | I115: 0 | J115: =SUM(G102:G115) -> 20.05 | K115: 5 | L115: 3.1 | M115: 24.93765586 | N115: 15.46134663 | O115: 9.476309227 | P115: 40.39900249 | Q115: 23.45679012 | R115: 25.07423289 | S115: Weak | T115: Bullish
A116: 2017-09-01T15:30:00 | B116: 919.75 | C116: 920 | D116: 918.95 | E116: 919.85 | F116: 268716 | G116: 1.05 | H116: 0 | I116: 0 | J116: =SUM(G103:G116) -> 20.45 | K116: 5 | L116: 3.1 | M116: 24.44987775 | N116: 15.15892421 | O116: 9.290953545 | P116: 39.60880196 | Q116: 23.45679012 | R116: 22.64637444 | S116: Weak | T116: Bullish
A117: 2017-09-04T09:20:00 | B117: 920.85 | C117: 921 | D117: 913.6 | E117: 915.1 | F117: 201679 | G117: 7.4 | H117: 0 | I117: 5.35 | J117: =SUM(G104:G117) -> 27.1 | K117: 5 | L117: 8.25 | M117: 18.4501845 | N117: 30.44280443 | O117: 11.99261993 | P117: 48.89298893 | Q117: 24.52830189 | R117: 20.52707648 | S117: Weak | T117: Bearish
A118: 2017-09-04T09:30:00 | B118: 914.95 | C118: 915.4 | D118: 911.2 | E118: 914.7 | F118: 179213 | G118: 4.2 | H118: 0 | I118: 2.4 | J118: =SUM(G105:G118) -> 30.65 | K118: 5 | L118: 10.3 | M118: 16.3132137 | N118: 33.60522023 | O118: 17.29200653 | P118: 49.91843393 | Q118: 34.64052288 | R118: 18.09068526 | S118: Weak | T118: Bearish
A119: 2017-09-04T09:40:00 | B119: 914.75 | C119: 915.1 | D119: 913.05 | E119: 914.75 | F119: 89591 | G119: 2.05 | H119: 0 | I119: 0 | J119: =SUM(G106:G119) -> 31.9 | K119: 4.55 | L119: 10.3 | M119: 14.26332288 | N119: 32.28840125 | O119: 18.02507837 | P119: 46.55172414 | Q119: 38.72053872 | R119: 18.36847655 | S119: Weak | T119: Bearish
A120: 2017-09-04T09:50:00 | B120: 914.75 | C120: 914.75 | D120: 913.5 | E120: 913.7 | F120: 80981 | G120: 1.25 | H120: 0 | I120: 0 | J120: =SUM(G107:G120) -> 31.75 | K120: 3.65 | L120: 10.3 | M120: 11.49606299 | N120: 32.44094488 | O120: 20.94488189 | P120: 43.93700787 | Q120: 47.6702509 | R120: 20.9056707 | S120: Weak | T120: Bearish
A121: 2017-09-04T10:00:00 | B121: 913.65 | C121: 914 | D121: 913 | E121: 913.95 | F121: 70763 | G121: 1 | H121: 0 | I121: 0.5 | J121: =SUM(G108:G121) -> 31.75 | K121: 3.65 | L121: 10.8 | M121: 11.49606299 | N121: 34.01574803 | O121: 22.51968504 | P121: 45.51181102 | Q121: 49.48096886 | R121: 23.4966294 | S121: Weak | T121: Bearish
A122: 2017-09-04T10:10:00 | B122: 913.95 | C122: 915 | D122: 913.5 | E122: 913.85 | F122: 56233 | G122: 1.5 | H122: 1 | I122: 0 | J122: =SUM(G109:G122) -> 31.55 | K122: 4.65 | L122: 10.1 | M122: 14.7385103 | N122: 32.01267829 | O122: 17.27416799 | P122: 46.75118859 | Q122: 36.94915254 | R122: 25.37302517 | S122: Weak | T122: Bearish
A123: 2017-09-04T10:20:00 | B123: 913.65 | C123: 914.9 | D123: 913.1 | E123: 913.35 | F123: 38582 | G123: 1.8 | H123: 0 | I123: 0.4 | J123: =SUM(G110:G123) -> 31.35 | K123: 4.65 | L123: 9.25 | M123: 14.83253589 | N123: 29.50558214 | O123: 14.67304625 | P123: 44.33811802 | Q123: 33.09352518 | R123: 27.43922935 | S123: Weak | T123: Bearish
A124: 2017-09-04T10:30:00 | B124: 913.35 | C124: 914.3 | D124: 913 | E124: 913.5 | F124: 45730 | G124: 1.3 | H124: 0 | I124: 0.1 | J124: =SUM(G111:G124) -> 31 | K124: 4.65 | L124: 8.75 | M124: 15 | N124: 28.22580645 | O124: 13.22580645 | P124: 43.22580645 | Q124: 30.59701493 | R124: 27.63651245 | S124: Weak | T124: Bearish
A125: 2017-09-04T10:40:00 | B125: 913.85 | C125: 915 | D125: 913.05 | E125: 914.6 | F125: 63810 | G125: 1.95 | H125: 0.7 | I125: 0 | J125: =SUM(G112:G125) -> 31.1 | K125: 4.85 | L125: 8.75 | M125: 15.59485531 | N125: 28.13504823 | O125: 12.54019293 | P125: 43.72990354 | Q125: 28.67647059 | R125: 28.54998532 | S125: Weak | T125: Bearish
A126: 2017-09-04T10:50:00 | B126: 914.6 | C126: 914.7 | D126: 913.6 | E126: 914.3 | F126: 50071 | G126: 1.1 | H126: 0 | I126: 0 | J126: =SUM(G113:G126) -> 30.6 | K126: 4.2 | L126: 8.75 | M126: 13.7254902 | N126: 28.59477124 | O126: 14.86928105 | P126: 42.32026144 | Q126: 35.13513514 | R126: 30.82154259 | S126: Strong | T126: Bearish
A127: 2017-09-04T11:00:00 | B127: 914.35 | C127: 914.6 | D127: 913.4 | E127: 914.05 | F127: 49945 | G127: 1.2 | H127: 0 | I127: 0.2 | J127: =SUM(G114:G127) -> 30.85 | K127: 3.7 | L127: 8.95 | M127: 11.99351702 | N127: 29.01134522 | O127: 17.0178282 | P127: 41.00486224 | Q127: 41.50197628 | R127: 33.66887345 | S127: Strong | T127: Bearish
A128: 2017-09-04T11:10:00 | B128: 914.05 | C128: 914.5 | D128: 913.45 | E128: 914.4 | F128: 45409 | G128: 1.05 | H128: 0 | I128: 0 | J128: =SUM(G115:G128) -> 29.05 | K128: 1.7 | L128: 8.95 | M128: 5.851979346 | N128: 30.80895009 | O128: 24.95697074 | P128: 36.66092943 | Q128: 68.07511737 | R128: 36.85589682 | S128: Strong | T128: Bearish
A129: 2017-09-04T11:20:00 | B129: 914.4 | C129: 914.85 | D129: 914.2 | E129: 914.5 | F129: 34486 | G129: 0.65 | H129: 0.35 | I129: 0 | J129: =SUM(G116:G129) -> 27.5 | K129: 2.05 | L129: 8.95 | M129: 7.454545455 | N129: 32.54545455 | O129: 25.09090909 | P129: 40 | Q129: 62.72727273 | R129: 39.66093129 | S129: Strong | T129: Bearish
A130: 2017-09-04T11:30:00 | B130: 914.5 | C130: 914.8 | D130: 914 | E130: 914.2 | F130: 30741 | G130: 0.8 | H130: 0 | I130: 0.2 | J130: =SUM(G117:G130) -> 27.25 | K130: 2.05 | L130: 9.15 | M130: 7.52293578 | N130: 33.57798165 | O130: 26.05504587 | P130: 41.10091743 | Q130: 63.39285714 | R130: 42.51350751 | S130: Strong | T130: Bearish
A131: 2017-09-04T11:40:00 | B131: 914 | C131: 914.65 | D131: 913.7 | E131: 914.1 | F131: 51877 | G131: 0.95 | H131: 0 | I131: 0.3 | J131: =SUM(G118:G131) -> 20.8 | K131: 2.05 | L131: 4.1 | M131: 9.855769231 | N131: 19.71153846 | O131: 9.855769231 | P131: 29.56730769 | Q131: 33.33333333 | R131: 43.14243833 | S131: Strong | T131: Bearish
A132: 2017-09-04T11:50:00 | B132: 914.1 | C132: 914.15 | D132: 911.1 | E132: 911.5 | F132: 156294 | G132: 3.05 | H132: 0 | I132: 2.6 | J132: =SUM(G119:G132) -> 19.65 | K132: 2.05 | L132: 4.3 | M132: 10.43256997 | N132: 21.88295165 | O132: 11.45038168 | P132: 32.31552163 | Q132: 35.43307087 | R132: 43.1990489 | S132: =IF(R132="","",IF(R132>=30,"Strong","Weak")) -> Strong | T132: =IF(R132="","",IF(M132>N132,"Bullish","Bearish")) -> Bearish
A133: 2017-09-04T12:00:00 | B133: 911.3 | C133: 911.85 | D133: 905.5 | E133: 905.65 | F133: 356014 | G133: =MAX(C133-D133,ABS(C133-E132),ABS(D133-E132)) -> 6.35 | H133: =IF(C133-C132>D132-D133,MAX(C133-C132,0),0) -> 0 | I133: =IF(D132-D133>C133-C132,MAX(D132-D133,0),0) -> 5.6 | J133: =SUM(G120:G133) -> 23.95 | K133: 2.05 | L133: 9.9 | M133: 8.559498956 | N133: 41.33611691 | O133: 32.77661795 | P133: 49.89561587 | Q133: 65.69037657 | R133: 45.12546589 | S133: Strong | T133: Bearish
A134: 2017-09-04T12:10:00 | B134: 905.35 | C134: 905.85 | D134: 898.1 | E134: 898.45 | F134: 574113 | G134: 7.75 | H134: 0 | I134: 7.4 | J134: =SUM(G121:G134) -> 30.45 | K134: 2.05 | L134: 17.3 | M134: 6.732348112 | N134: 56.81444992 | O134: 50.08210181 | P134: 63.54679803 | Q134: 78.81136951 | R134: 47.3498315 | S134: Strong | T134: Bearish
A135: 2017-09-04T12:20:00 | B135: 898.5 | C135: 901 | D135: 894.5 | E135: 894.95 | F135: 272098 | G135: 6.5 | H135: 0 | I135: 3.6 | J135: =SUM(G122:G135) -> 35.95 | K135: 2.05 | L135: 20.4 | M135: 5.702364395 | N135: 56.74547983 | O135: 51.04311544 | P135: 62.44784423 | Q135: 81.73719376 | R135: 49.65384757 | S135: Strong | T135: Bearish
A136: 2017-09-04T12:30:00 | B136: 894.4 | C136: 900 | D136: 893.55 | E136: 899.1 | F136: 195531 | G136: 6.45 | H136: 0 | I136: 0.95 | J136: =SUM(G123:G136) -> 40.9 | K136: 1.05 | L136: 21.35 | M136: 2.567237164 | N136: 52.200489 | O136: 49.63325183 | P136: 54.76772616 | Q136: 90.625 | R136: 53.48783667 | S136: Strong | T136: Bearish
A137: 2017-09-04T12:40:00 | B137: 899 | C137: 899.95 | D137: 898.05 | E137: 899.9 | F137: 93894 | G137: 1.9 | H137: 0 | I137: 0 | J137: =SUM(G124:G137) -> 41 | K137: 1.05 | L137: 20.95 | M137: 2.56097561 | N137: 51.09756098 | O137: 48.53658537 | P137: 53.65853659 | Q137: 90.45454545 | R137: 57.58505241 | S137: Strong | T137: Bearish
A138: 2017-09-04T12:50:00 | B138: 899.8 | C138: 899.95 | D138: 897 | E138: 898.85 | F138: 94881 | G138: 2.95 | H138: 0 | I138: 1.05 | J138: =SUM(G125:G138) -> 42.65 | K138: 1.05 | L138: 21.9 | M138: 2.461899179 | N138: 51.34818288 | O138: 48.8862837 | P138: 53.81008206 | Q138: 90.8496732 | R138: 61.88881371 | S138: Strong | T138: Bearish
A139: 2017-09-04T13:00:00 | B139: 898.4 | C139: 901.1 | D139: 898.4 | E139: 900.8 | F139: 93338 | G139: 2.7 | H139: 1.15 | I139: 0 | J139: =SUM(G126:G139) -> 43.4 | K139: 1.5 | L139: 21.9 | M139: 3.456221198 | N139: 50.46082949 | O139: 47.00460829 | P139: 53.91705069 | Q139: 87.17948718 | R139: 66.06760061 | S139: Strong | T139: Bearish
A140: 2017-09-04T13:10:00 | B140: 900.8 | C140: 901.65 | D140: 898.85 | E140: 900.45 | F140: 265311 | G140: 2.8 | H140: 0.55 | I140: 0 | J140: =SUM(G127:G140) -> 45.1 | K140: 2.05 | L140: 21.9 | M140: 4.545454545 | N140: 48.55875831 | O140: 44.01330377 | P140: 53.10421286 | Q140: 82.88100209 | R140: 69.47801968 | S140: Strong | T140: Bearish
A141: 2017-09-04T13:20:00 | B141: 900.2 | C141: 903.4 | D141: 900 | E141: 902.4 | F141: 147601 | G141: 3.4 | H141: 1.75 | I141: 0 | J141: =SUM(G128:G141) -> 47.3 | K141: 3.8 | L141: 21.7 | M141: 8.033826638 | N141: 45.87737844 | O141: 37.8435518 | P141: 53.91120507 | Q141: 70.19607843 | R141: 71.5275984 | S141: Strong | T141: Bearish
A142: 2017-09-04T13:30:00 | B142: 902.05 | C142: 902.35 | D142: 900 | E142: 900.6 | F142: 84062 | G142: 2.4 | H142: 0 | I142: 0 | J142: =SUM(G129:G142) -> 48.65 | K142: 3.8 | L142: 21.7 | M142: 7.810894142 | N142: 44.60431655 | O142: 36.7934224 | P142: 52.41521069 | Q142: 70.19607843 | R142: 71.67909562 | S142: Strong | T142: Bearish
A143: 2017-09-04T13:40:00 | B143: 900.65 | C143: 900.8 | D143: 899.05 | E143: 900 | F143: 86001 | G143: 1.75 | H143: 0 | I143: 0.95 | J143: =SUM(G130:G143) -> 49.75 | K143: 3.45 | L143: 22.65 | M143: 6.934673367 | N143: 45.52763819 | O143: 38.59296482 | P143: 52.46231156 | Q143: 73.56321839 | R143: 72.45309174 | S143: Strong | T143: Bearish
A144: 2017-09-04T13:50:00 | B144: 900 | C144: 900.5 | D144: 899.55 | E144: 900.25 | F144: 40921 | G144: 0.95 | H144: 0 | I144: 0 | J144: =SUM(G131:G144) -> 49.9 | K144: 3.45 | L144: 22.45 | M144: 6.913827655 | N144: 44.98997996 | O144: 38.0761523 | P144: 51.90380762 | Q144: 73.35907336 | R144: 73.16496433 | S144: Strong | T144: Bearish
A145: 2017-09-04T14:00:00 | B145: 900.05 | C145: 900.5 | D145: 898.2 | E145: 898.65 | F145: 65544 | G145: 2.3 | H145: 0 | I145: 1.35 | J145: =SUM(G132:G145) -> 51.25 | K145: 3.45 | L145: 23.5 | M145: 6.731707317 | N145: 45.85365854 | O145: 39.12195122 | P145: 52.58536585 | Q145: 74.39703154 | R145: 76.09808563 | S145: Strong | T145: Bearish
A146: 2017-09-04T14:10:00 | B146: 898.65 | C146: 900 | D146: 898.05 | E146: 900 | F146: 86815 | G146: 1.95 | H146: 0 | I146: 0.15 | J146: =SUM(G133:G146) -> 50.15 | K146: 3.45 | L146: 21.05 | M146: =(100*(K146/J146)) -> 6.879361914 | N146: =(100*(L146/J146)) -> 41.97407777 | O146: =ABS(M146-N146) -> 35.09471585 | P146: =M146+N146 -> 48.85343968 | Q146: =(100*(O146/P146)) -> 71.83673469 | R146: 78.69834733 | S146: Strong | T146: Bearish
A147: 2017-09-04T14:20:00 | B147: 899.95 | C147: 900.2 | D147: 899 | E147: 899.65 | F147: 106411 | G147: 1.2 | H147: 0.2 | I147: 0 | J147: =SUM(G134:G147) -> 45 | K147: 3.65 | L147: 15.45 | M147: 8.111111111 | N147: 34.33333333 | O147: 26.22222222 | P147: 42.44444444 | Q147: 61.78010471 | R147: 78.4190422 | S147: Strong | T147: Bearish
A148: 2017-09-04T14:30:00 | B148: 899.9 | C148: 901 | D148: 899.6 | E148: 901 | F148: 84197 | G148: 1.4 | H148: 0.8 | I148: 0 | J148: =SUM(G135:G148) -> 38.65 | K148: 4.45 | L148: 8.05 | M148: 11.51358344 | N148: 20.82794308 | O148: 9.314359638 | P148: 32.34152652 | Q148: 28.8 | R148: 74.84680152 | S148: Strong | T148: Bearish
A149: 2017-09-04T14:40:00 | B149: 900.7 | C149: 901.55 | D149: 900.5 | E149: 901 | F149: 108082 | G149: 1.05 | H149: 0.55 | I149: 0 | J149: =SUM(G136:G149) -> 33.2 | K149: 5 | L149: 4.45 | M149: 15.06024096 | N149: 13.40361446 | O149: 1.656626506 | P149: 28.46385542 | Q149: 5.82010582 | R149: 69.42415238 | S149: Strong | T149: Bullish
A150: 2017-09-04T14:50:00 | B150: 900.7 | C150: 901.5 | D150: 900 | E150: 900.6 | F150: 119287 | G150: 1.5 | H150: 0 | I150: 0.5 | J150: =SUM(G137:G150) -> 28.25 | K150: 5 | L150: 4 | M150: 17.69911504 | N150: 14.15929204 | O150: 3.539823009 | P150: 31.85840708 | Q150: 11.11111111 | R150: 63.74458889 | S150: Strong | T150: Bullish
A151: 2017-09-04T15:00:00 | B151: 900.7 | C151: 901 | D151: 898.55 | E151: 900 | F151: 171884 | G151: 2.45 | H151: 0 | I151: 1.45 | J151: =SUM(G138:G151) -> 28.8 | K151: 5 | L151: 5.45 | M151: 17.36111111 | N151: 18.92361111 | O151: 1.5625 | P151: 36.28472222 | Q151: 4.306220096 | R151: 57.59113708 | S151: Strong | T151: Bearish
A152: 2017-09-04T15:10:00 | B152: 900.1 | C152: 901.6 | D152: 899.35 | E152: 900.8 | F152: 249622 | G152: 2.25 | H152: 0.6 | I152: 0 | J152: =SUM(G139:G152) -> 28.1 | K152: 5.6 | L152: 4.4 | M152: 19.92882562 | N152: 15.65836299 | O152: 4.270462633 | P152: 35.58718861 | Q152: 12 | R152: 51.95901756 | S152: Strong | T152: Bullish
A153: 2017-09-04T15:20:00 | B153: 900.8 | C153: 901 | D153: 898.55 | E153: 899.45 | F153: 283363 | G153: 2.45 | H153: 0 | I153: 0.8 | J153: =SUM(G140:G153) -> 27.85 | K153: 4.45 | L153: 5.2 | M153: 15.97845601 | N153: 18.67145422 | O153: 2.692998205 | P153: 34.64991023 | Q153: 7.772020725 | R153: 46.28705567 | S153: Strong | T153: Bearish
A154: 2017-09-04T15:30:00 | B154: 899.4 | C154: 901 | D154: 899 | E154: 899.95 | F154: 248777 | G154: 2 | H154: 0 | I154: 0 | J154: =SUM(G141:G154) -> 27.05 | K154: 3.9 | L154: 5.2 | M154: 14.41774492 | N154: 19.22365989 | O154: 4.805914972 | P154: 33.64140481 | Q154: 14.28571429 | R154: 41.38739226 | S154: Strong | T154: Bearish
A155: 2017-09-05T09:20:00 | B155: 903 | C155: 904.65 | D155: 902.7 | E155: 904 | F155: 329938 | G155: 4.7 | H155: 3.65 | I155: 0 | J155: =SUM(G142:G155) -> 28.35 | K155: 5.8 | L155: 5.2 | M155: 20.45855379 | N155: 18.34215168 | O155: 2.116402116 | P155: 38.80070547 | Q155: 5.454545455 | R155: 36.76299704 | S155: Strong | T155: Bullish
A156: 2017-09-05T09:30:00 | B156: 903.2 | C156: 904 | D156: 899.1 | E156: 901.7 | F156: 345719 | G156: 4.9 | H156: 0 | I156: 3.6 | J156: =SUM(G143:G156) -> 30.85 | K156: 5.8 | L156: 8.8 | M156: 18.8006483 | N156: 28.52512156 | O156: 9.724473258 | P156: 47.32576985 | Q156: 20.54794521 | R156: 33.21670181 | S156: Strong | T156: Bearish
A157: 2017-09-05T09:40:00 | B157: 901.6 | C157: 903.45 | D157: 901.5 | E157: 902.25 | F157: 223722 | G157: 1.95 | H157: 0 | I157: 0 | J157: =SUM(G144:G157) -> 31.05 | K157: 5.8 | L157: 7.85 | M157: 18.67954911 | N157: 25.28180354 | O157: 6.602254428 | P157: 43.96135266 | Q157: 15.01831502 | R157: 29.034923 | S157: Weak | T157: Bearish
A158: 2017-09-05T09:50:00 | B158: 902.35 | C158: 902.75 | D158: 901.5 | E158: 902.65 | F158: 72047 | G158: 1.25 | H158: 0 | I158: 0 | J158: =SUM(G145:G158) -> 31.35 | K158: 5.8 | L158: 7.85 | M158: 18.50079745 | N158: 25.03987241 | O158: 6.53907496 | P158: 43.54066986 | Q158: 15.01831502 | R158: 24.86772598 | S158: Weak | T158: Bearish
A159: 2017-09-05T10:00:00 | B159: 902.75 | C159: 903.25 | D159: 902 | E159: 903 | F159: 194456 | G159: 1.25 | H159: 0.5 | I159: 0 | J159: =SUM(G146:G159) -> 30.3 | K159: 6.3 | L159: 6.5 | M159: 20.79207921 | N159: 21.45214521 | O159: 0.6600660066 | P159: 42.24422442 | Q159: 1.5625 | R159: =AVERAGE(Q146:Q159) -> 19.66525944 | S159: Weak | T159: Bearish
A160: 2017-09-05T10:10:00 | B160: 902.95 | C160: 903 | D160: 902 | E160: 902.35 | F160: 66968 | G160: 1 | H160: 0 | I160: 0 | J160: =SUM(G147:G160) -> 29.35 | K160: 6.3 | L160: 6.35 | M160: 21.46507666 | N160: 21.63543441 | O160: 0.1703577513 | P160: 43.10051107 | Q160: 0.395256917 | R160: 14.56229674 | S160: Weak | T160: Bearish
A161: 2017-09-05T10:20:00 | B161: 902.45 | C161: 902.5 | D161: 901.1 | E161: 901.7 | F161: 78116 | G161: 1.4 | H161: 0 | I161: 0.9 | J161: =SUM(G148:G161) -> 29.55 | K161: 6.1 | L161: 7.25 | M161: 20.642978 | N161: 24.53468697 | O161: 3.891708968 | P161: 45.17766497 | Q161: 8.61423221 | R161: 10.76473442 | S161: Weak | T161: Bearish
A162: 2017-09-05T10:30:00 | B162: 901.7 | C162: 901.75 | D162: 900.05 | E162: 900.35 | F162: 198792 | G162: 1.7 | H162: 0 | I162: 1.05 | J162: =SUM(G149:G162) -> 29.85 | K162: 5.3 | L162: 8.3 | M162: 17.75544389 | N162: 27.80569514 | O162: 10.05025126 | P162: 45.56113903 | Q162: 22.05882353 | R162: 10.28322181 | S162: Weak | T162: Bearish
A163: 2017-09-05T10:40:00 | B163: 900.35 | C163: 901 | D163: 900.15 | E163: 900.55 | F163: 67979 | G163: 0.85 | H163: 0 | I163: 0 | J163: =SUM(G150:G163) -> 29.65 | K163: 4.75 | L163: 8.3 | M163: 16.02023609 | N163: 27.99325464 | O163: 11.97301855 | P163: 44.01349073 | Q163: 27.20306513 | R163: 11.81057605 | S163: Weak | T163: Bearish
A164: 2017-09-05T10:50:00 | B164: 900.4 | C164: 900.5 | D164: 897.55 | E164: 897.55 | F164: 139860 | G164: 3 | H164: 0 | I164: 2.6 | J164: =SUM(G151:G164) -> 31.15 | K164: 4.75 | L164: 10.4 | M164: 15.24879615 | N164: 33.38683788 | O164: 18.13804173 | P164: 48.63563403 | Q164: 37.29372937 | R164: 13.68076307 | S164: Weak | T164: Bearish
A165: 2017-09-05T11:00:00 | B165: 897.55 | C165: 899.5 | D165: 897.25 | E165: 899.45 | F165: 124044 | G165: 2.25 | H165: 0 | I165: 0.3 | J165: =SUM(G152:G165) -> 30.95 | K165: 4.75 | L165: 9.25 | M165: 15.34733441 | N165: 29.88691438 | O165: 14.53957997 | P165: 45.23424879 | Q165: 32.14285714 | R165: 15.66909429 | S165: Weak | T165: Bearish
A166: 2017-09-05T11:10:00 | B166: 899.45 | C166: 901 | D166: 898.9 | E166: 899.9 | F166: 105392 | G166: 2.1 | H166: 1.5 | I166: 0 | J166: =SUM(G153:G166) -> 30.8 | K166: 5.65 | L166: 9.25 | M166: 18.34415584 | N166: 30.03246753 | O166: 11.68831169 | P166: 48.37662338 | Q166: 24.16107383 | R166: 16.53774242 | S166: Weak | T166: Bearish
A167: 2017-09-05T11:20:00 | B167: 899.85 | C167: 900.2 | D167: 899 | E167: 899.9 | F167: 36439 | G167: 1.2 | H167: 0 | I167: 0 | J167: =SUM(G154:G167) -> 29.55 | K167: 5.65 | L167: 8.45 | M167: 19.12013536 | N167: 28.59560068 | O167: 9.475465313 | P167: 47.71573604 | Q167: 19.85815603 | R167: 17.4010378 | S167: Weak | T167: Bearish
A168: 2017-09-05T11:30:00 | B168: 899.9 | C168: 899.9 | D168: 898.5 | E168: 899.25 | F168: 31044 | G168: 1.4 | H168: 0 | I168: 0.5 | J168: =SUM(G155:G168) -> 28.95 | K168: 5.65 | L168: 8.95 | M168: 19.5164076 | N168: 30.91537133 | O168: 11.39896373 | P168: 50.43177893 | Q168: 22.60273973 | R168: 17.99511104 | S168: Weak | T168: Bearish
A169: 2017-09-05T11:40:00 | B169: 899.05 | C169: 900 | D169: 898.9 | E169: 899.6 | F169: 32326 | G169: 1.1 | H169: 0.1 | I169: 0 | J169: =SUM(G156:G169) -> 25.35 | K169: 2.1 | L169: 8.95 | M169: 8.284023669 | N169: 35.30571992 | O169: 27.02169625 | P169: 43.58974359 | Q169: 61.99095023 | R169: 22.03342567 | S169: Weak | T169: Bearish
A170: 2017-09-05T11:50:00 | B170: 899.6 | C170: 899.95 | D170: 899 | E170: 899.8 | F170: 52845 | G170: 0.95 | H170: 0 | I170: 0 | J170: =SUM(G157:G170) -> 21.4 | K170: 2.1 | L170: 5.35 | M170: 9.813084112 | N170: 25 | O170: 15.18691589 | P170: 34.81308411 | Q170: 43.62416107 | R170: 23.6817268 | S170: Weak | T170: Bearish
A171: 2017-09-05T12:00:00 | B171: 899.9 | C171: 900 | D171: 899.6 | E171: 899.75 | F171: 98339 | G171: 0.4 | H171: 0.05 | I171: 0 | J171: =SUM(G158:G171) -> 19.85 | K171: 2.15 | L171: 5.35 | M171: 10.83123426 | N171: 26.95214106 | O171: 16.1209068 | P171: 37.78337531 | Q171: 42.66666667 | R171: 25.65660906 | S171: Weak | T171: Bearish
A172: 2017-09-05T12:10:00 | B172: 899.75 | C172: 900 | D172: 898.5 | E172: 898.8 | F172: 62199 | G172: 1.5 | H172: 0 | I172: 1.1 | J172: =SUM(G159:G172) -> 20.1 | K172: 2.15 | L172: 6.45 | M172: 10.69651741 | N172: 32.08955224 | O172: 21.39303483 | P172: 42.78606965 | Q172: 50 | R172: 28.15530085 | S172: Weak | T172: Bearish
A173: 2017-09-05T12:20:00 | B173: 898.75 | C173: 899.25 | D173: 897.4 | E173: 897.8 | F173: 86158 | G173: 1.85 | H173: 0 | I173: 1.1 | J173: =SUM(G160:G173) -> 20.7 | K173: 1.65 | L173: 7.55 | M173: 7.971014493 | N173: 36.47342995 | O173: 28.50241546 | P173: 44.44444444 | Q173: 64.13043478 | R173: 32.62443905 | S173: Strong | T173: Bearish
A174: 2017-09-05T12:30:00 | B174: 897.8 | C174: 899 | D174: 897.5 | E174: 898.5 | F174: 80544 | G174: 1.5 | H174: 0 | I174: 0 | J174: =SUM(G161:G174) -> 21.2 | K174: 1.65 | L174: 7.55 | M174: 7.783018868 | N174: 35.61320755 | O174: 27.83018868 | P174: 43.39622642 | Q174: 64.13043478 | R174: 37.17695175 | S174: Strong | T174: Bearish
A175: 2017-09-05T12:40:00 | B175: 898.55 | C175: 899.4 | D175: 898.15 | E175: 899 | F175: 37299 | G175: 1.25 | H175: 0.4 | I175: 0 | J175: =SUM(G162:G175) -> 21.05 | K175: 2.05 | L175: 6.65 | M175: 9.73871734 | N175: 31.59144893 | O175: 21.85273159 | P175: 41.33016627 | Q175: 52.87356322 | R175: 40.33833254 | S175: Strong | T175: Bearish
A176: 2017-09-05T12:50:00 | B176: 899.15 | C176: 899.8 | D176: 898.6 | E176: 898.95 | F176: 100508 | G176: 1.2 | H176: 0.4 | I176: 0 | J176: =SUM(G163:G176) -> 20.55 | K176: 2.45 | L176: 5.6 | M176: 11.92214112 | N176: 27.25060827 | O176: 15.32846715 | P176: 39.17274939 | Q176: 39.13043478 | R176: 41.55773334 | S176: Strong | T176: Bearish
A177: 2017-09-05T13:00:00 | B177: 899.2 | C177: 899.5 | D177: 898.55 | E177: 899 | F177: 43323 | G177: 0.95 | H177: 0 | I177: 0.05 | J177: =SUM(G164:G177) -> 20.65 | K177: 2.45 | L177: 5.65 | M177: 11.86440678 | N177: 27.36077482 | O177: 15.49636804 | P177: 39.2251816 | Q177: 39.50617284 | R177: 42.43652675 | S177: Strong | T177: Bearish
A178: 2017-09-05T13:10:00 | B178: 899 | C178: 899.2 | D178: 898.55 | E178: 898.85 | F178: 84586 | G178: 0.65 | H178: 0 | I178: 0 | J178: =SUM(G165:G178) -> 18.3 | K178: 2.45 | L178: 3.05 | M178: 13.38797814 | N178: 16.66666667 | O178: 3.278688525 | P178: 30.05464481 | Q178: 10.90909091 | R178: 40.55190971 | S178: Strong | T178: Bearish
A179: 2017-09-05T13:20:00 | B179: 898.9 | C179: 899.5 | D179: 898.5 | E179: 899.2 | F179: 82505 | G179: 1 | H179: 0.3 | I179: 0 | J179: =SUM(G166:G179) -> 17.05 | K179: 2.75 | L179: 2.75 | M179: 16.12903226 | N179: 16.12903226 | O179: 1.33226763e-12 | P179: 32.25806452 | Q179: 4.130029652e-12 | R179: 38.25599135 | S179: Strong | T179: Bearish
A180: 2017-09-05T13:30:00 | B180: 899.15 | C180: 899.35 | D180: 898.5 | E180: 899 | F180: 37063 | G180: 0.85 | H180: 0 | I180: 0 | J180: =SUM(G167:G180) -> 15.8 | K180: 1.25 | L180: 2.75 | M180: 7.911392405 | N180: 17.40506329 | O180: 9.493670886 | P180: 25.3164557 | Q180: 37.5 | R180: 39.20877179 | S180: Strong | T180: Bearish
A181: 2017-09-05T13:40:00 | B181: 899 | C181: 899.75 | D181: 898.75 | E181: 899.6 | F181: 60537 | G181: 1 | H181: 0.4 | I181: 0 | J181: =SUM(G168:G181) -> 15.6 | K181: 1.65 | L181: 2.75 | M181: 10.57692308 | N181: 17.62820513 | O181: 7.051282051 | P181: 28.20512821 | Q181: 25 | R181: 39.57604636 | S181: Strong | T181: Bearish
A182: 2017-09-05T13:50:00 | B182: 899.55 | C182: 900 | D182: 899.1 | E182: 899.85 | F182: 123065 | G182: 0.9 | H182: 0.25 | I182: 0 | J182: =SUM(G169:G182) -> 15.1 | K182: 1.9 | L182: 2.25 | M182: 12.58278146 | N182: 14.90066225 | O182: 2.317880795 | P182: 27.48344371 | Q182: 8.43373494 | R182: 38.56397459 | S182: Strong | T182: Bearish
A183: 2017-09-05T14:00:00 | B183: 899.75 | C183: 900.1 | D183: 899.35 | E183: 899.8 | F183: 105222 | G183: 0.75 | H183: 0.1 | I183: 0 | J183: =SUM(G170:G183) -> 14.75 | K183: 1.9 | L183: 2.25 | M183: 12.88135593 | N183: 15.25423729 | O183: 2.372881356 | P183: 28.13559322 | Q183: 8.43373494 | R183: 34.73845921 | S183: Strong | T183: Bearish
A184: 2017-09-05T14:10:00 | B184: 899.8 | C184: 900.1 | D184: 898.5 | E184: 900 | F184: 106326 | G184: 1.6 | H184: 0 | I184: 0.85 | J184: =SUM(G171:G184) -> 15.4 | K184: 1.9 | L184: 3.1 | M184: 12.33766234 | N184: 20.12987013 | O184: 7.792207792 | P184: 32.46753247 | Q184: 24 | R184: 33.33673342 | S184: Strong | T184: Bearish
A185: 2017-09-05T14:20:00 | B185: 900 | C185: 901 | D185: 899.6 | E185: 900.5 | F185: 145538 | G185: 1.4 | H185: 0.9 | I185: 0 | J185: =SUM(G172:G185) -> 16.4 | K185: 2.75 | L185: 3.1 | M185: 16.76829268 | N185: 18.90243902 | O185: 2.134146341 | P185: 35.67073171 | Q185: 5.982905983 | R185: 30.7164648 | S185: Strong | T185: Bearish
A186: 2017-09-05T14:30:00 | B186: 900.5 | C186: 902.2 | D186: 900.1 | E186: 901.95 | F186: 311683 | G186: 2.1 | H186: 1.2 | I186: 0 | J186: =SUM(G173:G186) -> 17 | K186: 3.95 | L186: 2 | M186: 23.23529412 | N186: 11.76470588 | O186: 11.47058824 | P186: 35 | Q186: 32.77310924 | R186: 29.4859726 | S186: Weak | T186: Bullish
A187: 2017-09-05T14:40:00 | B187: 902 | C187: 902.8 | D187: 901.65 | E187: 902.1 | F187: 150772 | G187: 1.15 | H187: 0.6 | I187: 0 | J187: =SUM(G174:G187) -> 16.3 | K187: 4.55 | L187: 0.9 | M187: 27.91411043 | N187: 5.521472393 | O187: 22.39263804 | P187: 33.43558282 | Q187: 66.97247706 | R187: 29.68897562 | S187: Weak | T187: Bullish
A188: 2017-09-05T14:50:00 | B188: 902.45 | C188: 902.5 | D188: 901.1 | E188: 901.95 | F188: 163549 | G188: 1.4 | H188: 0 | I188: 0.55 | J188: =SUM(G175:G188) -> 16.2 | K188: 4.55 | L188: 1.45 | M188: 28.08641975 | N188: 8.950617284 | O188: 19.13580247 | P188: 37.03703704 | Q188: 51.66666667 | R188: 28.79870647 | S188: Weak | T188: Bullish
A189: 2017-09-05T15:00:00 | B189: 901.9 | C189: 902.15 | D189: 901.4 | E189: 902 | F189: 160577 | G189: 0.75 | H189: 0 | I189: 0 | J189: =SUM(G176:G189) -> 15.7 | K189: 4.15 | L189: 1.45 | M189: 26.43312102 | N189: 9.23566879 | O189: 17.19745223 | P189: 35.66878981 | Q189: 48.21428571 | R189: 28.46590093 | S189: Weak | T189: Bullish
A190: 2017-09-05T15:10:00 | B190: 902 | C190: 902.7 | D190: 901.3 | E190: 902 | F190: 209659 | G190: 1.4 | H190: 0.55 | I190: 0 | J190: =SUM(G177:G190) -> 15.9 | K190: 4.3 | L190: 1.45 | M190: 27.04402516 | N190: 9.119496855 | O190: 17.9245283 | P190: 36.16352201 | Q190: 49.56521739 | R190: 29.21124255 | S190: Weak | T190: Bullish
A191: 2017-09-05T15:20:00 | B191: 902.05 | C191: 902.4 | D191: 901 | E191: 901.95 | F191: 292440 | G191: 1.4 | H191: 0 | I191: 0.3 | J191: =SUM(G178:G191) -> 16.35 | K191: 4.3 | L191: 1.7 | M191: 26.29969419 | N191: 10.39755352 | O191: 15.90214067 | P191: 36.69724771 | Q191: 43.33333333 | R191: 29.48461116 | S191: Weak | T191: Bullish
A192: 2017-09-05T15:30:00 | B192: 902 | C192: 902 | D192: 900.45 | E192: 901 | F192: 241791 | G192: 1.55 | H192: 0 | I192: 0.55 | J192: =SUM(G179:G192) -> 17.25 | K192: 4.3 | L192: 2.25 | M192: 24.92753623 | N192: 13.04347826 | O192: 11.88405797 | P192: 37.97101449 | Q192: 31.29770992 | R192: 30.94094109 | S192: Strong | T192: Bullish
A193: 2017-09-06T09:20:00 | B193: 900 | C193: 900 | D193: 892.8 | E193: 898 | F193: 166853 | G193: 8.2 | H193: 0 | I193: 7.65 | J193: =SUM(G180:G193) -> 24.45 | K193: 4 | L193: 9.9 | M193: 16.3599182 | N193: 40.49079755 | O193: 24.13087935 | P193: 56.85071575 | Q193: 42.44604317 | R193: 33.97280131 | S193: Strong | T193: Bearish
A194: 2017-09-06T09:30:00 | B194: 898 | C194: 898.2 | D194: 893.3 | E194: 896.05 | F194: 190082 | G194: 4.9 | H194: 0 | I194: 0 | J194: =SUM(G181:G194) -> 28.5 | K194: 4 | L194: 9.9 | M194: 14.03508772 | N194: 34.73684211 | O194: 20.70175439 | P194: 48.77192982 | Q194: 42.44604317 | R194: 34.32609011 | S194: Strong | T194: Bearish
A195: 2017-09-06T09:40:00 | B195: 896.2 | C195: 896.3 | D195: 890.8 | E195: 892.75 | F195: 263456 | G195: 5.5 | H195: 0 | I195: 2.5 | J195: =SUM(G182:G195) -> 33 | K195: 3.6 | L195: 12.4 | M195: 10.90909091 | N195: 37.57575758 | O195: 26.66666667 | P195: 48.48484848 | Q195: 55 | R195: 36.46894725 | S195: Strong | T195: Bearish
A196: 2017-09-06T09:50:00 | B196: 892.9 | C196: 895 | D196: 892.7 | E196: 894.8 | F196: 321800 | G196: 2.3 | H196: 0 | I196: 0 | J196: =SUM(G183:G196) -> 34.4 | K196: 3.35 | L196: 12.4 | M196: 9.738372093 | N196: 36.04651163 | O196: 26.30813953 | P196: 45.78488372 | Q196: 57.46031746 | R196: 39.970846 | S196: =IF(R196="","",IF(R196>=30,"Strong","Weak")) -> Strong | T196: =IF(R196="","",IF(M196>N196,"Bullish","Bearish")) -> Bearish
A197: 2017-09-06T10:00:00 | B197: 894.8 | C197: 895 | D197: 892.5 | E197: 892.65 | F197: 177103 | G197: =MAX(C197-D197,ABS(C197-E196),ABS(D197-E196)) -> 2.5 | H197: =IF(C197-C196>D196-D197,MAX(C197-C196,0),0) -> 0 | I197: =IF(D196-D197>C197-C196,MAX(D196-D197,0),0) -> 0.2 | J197: =SUM(G184:G197) -> 36.15 | K197: 3.25 | L197: 12.6 | M197: 8.990318119 | N197: 34.85477178 | O197: 25.86445367 | P197: 43.8450899 | Q197: 58.99053628 | R197: 43.5820461 | S197: Strong | T197: Bearish
A198: 2017-09-06T10:10:00 | B198: 892.65 | C198: 893.5 | D198: 892 | E198: 892.45 | F198: 123762 | G198: 1.5 | H198: 0 | I198: 0.5 | J198: =SUM(G185:G198) -> 36.05 | K198: 3.25 | L198: 12.25 | M198: 9.015256588 | N198: 33.98058252 | O198: 24.96532594 | P198: 42.99583911 | Q198: 58.06451613 | R198: 46.01522582 | S198: Strong | T198: Bearish
A199: 2017-09-06T10:20:00 | B199: 892.55 | C199: 892.7 | D199: 892.05 | E199: 892.65 | F199: 77090 | G199: 0.65 | H199: 0 | I199: 0 | J199: =SUM(G186:G199) -> 35.3 | K199: 2.35 | L199: 12.25 | M199: 6.657223796 | N199: 34.70254958 | O199: 28.04532578 | P199: 41.35977337 | Q199: 67.80821918 | R199: 50.43131962 | S199: Strong | T199: Bearish
A200: 2017-09-06T10:30:00 | B200: 892.65 | C200: 893.5 | D200: 892.15 | E200: 892.15 | F200: 76572 | G200: 1.35 | H200: 0.8 | I200: 0 | J200: =SUM(G187:G200) -> 34.55 | K200: 1.95 | L200: 12.25 | M200: 5.643994211 | N200: 35.45586107 | O200: 29.81186686 | P200: 41.09985528 | Q200: 72.53521127 | R200: 53.27146977 | S200: Strong | T200: Bearish
A201: 2017-09-06T10:40:00 | B201: 892.15 | C201: 893 | D201: 890.05 | E201: 891.25 | F201: 168013 | G201: 2.95 | H201: 0 | I201: 2.1 | J201: =SUM(G188:G201) -> 36.35 | K201: 1.35 | L201: 14.35 | M201: 3.71389271 | N201: 39.47730399 | O201: 35.76341128 | P201: 43.1911967 | Q201: 82.80254777 | R201: 54.4021891 | S201: Strong | T201: Bearish
... 4299 more rows

Sheet Sheet1 (hidden)
A1: 1
A2: 2
A3: 3
A4: 5
A5: 10
A6: 15
A7: 30
A8: 60
